{"text_format":"1","workbook":"xlsx","n_sheets":8,"sheets":["Year 1","Year 2","Year 3","Year 4","Year 5","Year 6","Year 7","7 YEAR TOTAL"],"not_rendered":{"charts":0,"images":0,"macros":0,"external_links":0,"defined_names":16,"comments":0,"pivot_tables":0},"unopened":[],"bounds":{"document_bytes":16777216,"sheet_cells":100000,"rows_first":2000,"rows_last":500,"rows_between":2000,"halvings":0,"cell_chars":16384,"cell_head_chars":4096},"cells_cut":0,"cells_raw":0,"read":"whole","date_system":"1900"}

{"sheet":"Year 1","index":0,"n_rows":42,"n_cols":15,"rows_kept":42,"cut":false,"hidden":false,"merged":[[40,0,40,2],[40,8,40,9],[0,0,0,14],[37,0,37,14],[29,0,29,14],[30,0,30,14],[31,1,31,14],[32,1,32,14],[33,1,33,14],[34,1,34,14],[35,1,35,14],[36,1,36,14],[42,0,42,14],[43,0,43,14],[28,12,28,14],[28,0,28,10],[41,8,41,14],[39,0,39,1],[39,2,39,5],[39,6,39,8],[38,12,38,13],[38,6,38,7],[38,8,38,9],[41,0,41,6],[38,0,38,1],[38,2,38,5],[39,9,39,11],[39,12,39,13]]}
["BID SCHEDULE FOR ITB 2026-1000-0230"]
["A.","B.","C.","D.","E.","F.","G.","H.","I.","J.","K.","L.","M.","N.","O."]
["Line Item","Site","Container Size","Qty","Rental                                         Cost per Container                                 ","Number of Weeks","Total Cost, Rental (Sum of Column E x Column F)","Price Per Pick-Up                           per Container","Estimated No. of Pick-Ups","Total Cost, Pick-Ups (Sum of Column H x Column I)","Cost for Delivery and Pick-Up at Beginning and End of Season","Total Cost per Year (Sum of Column G + Column J + Column K)","Approximate Date In    ","Approximate Date Out   ","Scheduled Pick Up Frequency"]
[1,"Morgan's Landing SRA;\nBy Office;\nBear Resistant Container.","4 YD",1,null,"52",{"$f":"IF(E4>1,(E4*F4),\"\")","v":""},null,44,{"$f":"IF(H4>1,(H4*I4),\"\")","v":""},null,{"$f":"IF(AND(G4>1,J4>1,K4>1),SUM(G4,J4,K4),\"\")","v":""},"Year Round","Year Round","November 1 - February 28:  Monthly;\nMarch 1 - June 30 and August 6 - October 31: 1 x Weekly on Thursdays;\nJuly 1 - August 5: Twice Weekly Mondays and Thursdays      "]
[2,"Morgan's Landing SRA;\nCampground Overflow Lot Entrance;\nBear Resistant Container.","6 YD",1,null,16,"",null,24,"",null,"","2026-05-15","2026-09-15","May 15 - June 30 and August 6 - September 15: 1 x Weekly;\nJuly 1 - August 5: Twice Weekly Mondays and Thursdays\n(if needed when we set schedule) "]
[3,"Cooper Landing;\nBear Resistant Container.","6 YD",1,null,24,"",null,32,"",null,"","2026-05-01","2026-10-31","May 1 - June 30 and August 6 - October 31: 1 x Weekly;\nJuly 1 - August 5: Twice Weekly Mondays and Thursdays\n(if needed when we set schedule) "]
[4,"Izaak Walton Boat Launch;\nBear Resistant Container.","6 YD",1,null,16,"",null,24,"",null,"","2026-05-15","2026-09-15","May 15 - June 30 and August 6 - September 15: 1 x Weekly;\nJuly 1 - August 5: Twice Weekly Mondays and Thursdays\n(if needed when we set schedule) "]
[5,"Bings Landing SRA;\nUpper Campground;\nBear Resistant Container.","6 YD",1,null,16,"",null,24,"",null,"","2026-05-15","2026-09-15","May 15 - June 30 and August 6 - September 15: 1 x Weekly;\nJuly 1 - August 5: Twice Weekly Mondays and Thursdays\n(if needed when we set schedule) "]
[6,"Bings Landing SRA;\nBoat Launch;\nBear Resistant Container.","6 YD",1,null,25,"",null,33,"",null,"","2026-05-15","2026-10-31","May 15 - June 30 and August 6 - October 31: 1 x Weekly;\nJuly 1 - August 5: Twice Weekly Mondays and Thursdays\n(if needed when we set schedule) "]
[7,"Bings Landing SRA;\nBings Backline;\nBear Resistant Container.","6 YD",1,null,16,"",null,24,"",null,"","2026-05-15","2026-09-15","May 15 - June 30 and August 6 - September 15: 1 x Weekly;\nJuly 1 - August 5: Twice Weekly Mondays and Thursdays\n(if needed when we set schedule) "]
[8,"Eagle Rock - under construct;\nBear Resistant Container.","6 YD",1,null,16,"",null,24,"",null,"","2026-05-15","2026-09-15","May 15 - June 30 and August 6 - September 15: 1 x Weekly;\nJuly 1 - August 5: Twice Weekly Mondays and Thursdays\n(if needed when we set schedule) "]
[9,"Pillars-under constuction;\nBear Resistant Container.","6 YD",1,null,16,"",null,24,"",null,"","2026-05-15","2026-09-15","May 15 - June 30 and August 6 - September 15: 1 x Weekly;\nJuly 1 - August 5: Twice Weekly Mondays and Thursdays\n(if needed when we set schedule) "]
[10,"Kasilof OKL -under construction;\nBear Resistant Container.","6 YD",1,null,24,"",null,32,"",null,"","2026-05-01","2026-10-31","May 1 - June 30 and August 6 - October 31: 1 x Weekly on Thursdays;\nJune 1 - July 1: Twice Weekly on Mondays and Thursdays\n(if needed when we set schedule)"]
[11,"Kasilof River SRS;\nEntrance;\nBear Resistant Container","6 YD",1,null,20,"",null,28,"",null,"","2026-05-01","2026-09-15","May 1 - June 30 and August 6 - September 15: 1 x Weekly on Thursdays;\nJune 1 - July 1: Twice Weekly on Mondays and Thursdays\n(if needed when we set schedule)"]
[12,"Johnson Lake SRA;\nBoat Ramp - Right Loop;\nBear Resistant Container.","6 YD",1,null,20,"",null,28,"",null,"","2026-05-01","2026-09-15","May 1 - June 30 and August 6 - September 15: 1 x Weekly on Thursdays;\nJune 1 - July 1: Twice Weekly on Mondays and Thursdays\n(if needed when we set schedule)"]
[13,"Johnson Lake SRA;\n1st Latrine - Left Loop;\nBear Resistant Container.","6 YD",1,null,20,"",null,28,"",null,"","2026-05-01","2026-09-15","May 1 - June 30 and August 6 - September 15: 1 x Weekly on Thursdays;\nJune 1 - July 1: Twice Weekly on Mondays and Thursdays\n(if needed when we set schedule)"]
[14,"Crooked Creek SRS;\nDumpster Pad Near Exit;\nBear Resistant Container.","6 YD",1,null,20,"",null,28,"",null,"","2026-05-15","2026-09-15","May 15 - June 30 and August 6 - September 15: 1 x Weekly on Thursdays;\nJune 1 - July 1: Twice Weekly on Mondays and Thursdays\n(if needed when we set schedule)"]
[15,"Clam Gulch SRA;\nFar End - Lower Lot;\nBear Resistant Container.","6 YD",1,null,20,"",null,28,"",null,"","2026-05-15","2026-09-15","May 15 - June 30 and August 6 - September 15: 1 x Weekly on Thursdays;\nJune 1 - July 1: Twice Weekly on Mondays and Thursdays\n(if needed when we set schedule)"]
[16,"Ninilchik SRA ;\nView Campground (Bluff);\nBear Resistant Container.","6 YD",1,null,20,"",null,28,"",null,"","2026-05-15","2026-09-15","May 15 - June 30 and August 6 - September 15: 1 x Weekly on Thursdays;\nJune 1 - July 1: Twice Weekly on Mondays and Thursdays\n(if needed when we set schedule)"]
[17,"Ninilchik SRA;\n1st Outhouse, River Campground;\nBear Resistant Container.","6 YD",1,null,20,"",null,28,"",null,"","2026-05-15","2026-09-15","May 15 - June 30 and August 6 - September 15: 1 x Weekly on Thursdays;\nJune 1 - July 1: Twice Weekly on Mondays and Thursdays\n(if needed when we set schedule)"]
[18,"Ninilchik SRA;\n2nd Outhouse, River Campground;\nBear Resistant Container.","6 YD",1,null,20,"",null,28,"",null,"","2026-05-15","2026-09-15","May 15 - June 30 and August 6 - September 15: 1 x Weekly on Thursdays;\nJune 1 - July 1: Twice Weekly on Mondays and Thursdays\n(if needed when we set schedule)"]
[19,"Ninilchik River Scenic Overview (Pullout North of Ninilchik River on East Side of Sterling Highway);\nAt Dumpster Pad;\nBear Resistant Container.","6 YD",1,null,20,"",null,28,"",null,"","2026-05-15","2026-09-15","May 15 - June 30 and August 6 - September 15: 1 x Weekly on Thursdays;\nJune 1 - July 1: Twice Weekly on Mondays and Thursdays\n(if needed when we set schedule)"]
[20,"Deep Creek SRA;\n1st Outhouse;\nBear Resistant Container.","6 YD",1,null,20,"",null,28,"",null,"","2026-05-01","2026-09-15","May 1- May 15 and August 6 - September 15: Weekly on Mondays;\nMay 16 - August 5: Twice Weekly on Mondays and Fridays\n(if needed when we schedule)"]
[21,"Deep Creek SRA;\n1st Outhouse;\nBear Resistant Container.","6 YD",1,null,20,"",null,28,"",null,"","2026-05-01","2026-09-15","May 1- May 15 and August 6 - September 15: Weekly on Mondays;\nMay 16 - August 5: Twice Weekly on Mondays and Fridays\n(if needed when we schedule)"]
[22,"Deep Creek SRA;\nBoat Ramp Outhouse;\nBear Resistant Container.","6 YD",1,null,20,"",null,28,"",null,"","2026-05-15","2026-09-15","May 15 - May 15 and August 6 - September 15: Weekly on Mondays;\nMay 16 - August 5: Twice Weekly on Mondays and Fridays\n(if needed when we schedule)"]
[24,"Deep Creek South (south pullout near Deep Creek highway bridge);\nPlace dumpster on pavement  opposite of latine in the corner;\nBear Resistant Container.","6 YD",1,null,20,"",null,28,"",null,"","2026-05-01","2026-09-15","May 1 - May 15 and August 6 - September 15: Weekly on Mondays;\nMay 16 - August 5: Twice Weekly on Mondays and Fridays\n(if needed when we schedule)"]
[25,"Deep Creek North (North pullout near Deep Creek Highway Bridge);\nAt Dumpster Pad;\nBear Resistant Container.","6 YD",1,null,20,"",null,28,"",null,"","2026-05-01","2026-09-15","May 1 - May 15 and August 6 - September 15: Weekly on Mondays;\nMay 16 - August 5: Twice Weekly on Mondays and Fridays\n(if needed when we schedule)"]
[26,"Lowell Point - Seward;\nUpper Parking Lot;\nBear Resistant Container.","4 YD",1,null,52,"",null,44,"",null,"","Year Round","Year Round","November 1 - February 28:  Monthly;\nMarch 1 - June 30 and August 6 - October 31: 1 x Weekly on Thursdays;\nJuly 1 - August 5: Twice Weekly Mondays and Thursdays\n(If needed when we set schedule)    "]
["TOTAL YEARLY COST",null,null,null,null,null,null,null,null,null,null,{"$f":"IF(AND(L4=\"\",L5=\"\",L7=\"\",L8=\"\",L9=\"\",L10=\"\",L14=\"\",L15=\"\",L16=\"\",L17=\"\",L18=\"\",L19=\"\",L20=\"\",L21=\"\",L22=\"\",L23=\"\",L26=\"\",L27=\"\",L28=\"\"),\"\",SUM(L4:L28))","v":""}]
["Prices do not reflect the Disposal Surcharge and RCA Fee.  Each Fee to be billed as separate line items on invoice. Bidder is to provide a current Surcharges and RCA Fee schedule in a document attached separately to this Bid Schedule"]
["DETAILS FOR BID SCHEDULE"]
["A.","Award will be made By Line Item based on the Total Cost Per Year shown in Column L.  There are 26 Line Items and bidders must bid on.  This is the cost that will be evaluated by the State for award of the contract for each line item."]
["B.","Unless otherwise specified, all containers are to be bear-resistant / bear-proof containers."]
["C.","The Number of Months / Weeks shown in Column F is an estimated number based upon the Approximate Date In and Approximate Date Out shown in Columns M and N. This number is an estimate and will be used only for award and evaluation purposes. The actual number of months/weeks may vary from year to year based upon the needs of the State."]
["D.","The Estimated No. of Pick-Ups shown in Column I is an estimated number based upon the services required in the Scheduled Pick Up Frequency (Column O). This number is an estimate only and will be used only for award and evaluation purposes. The actual number of pick ups may vary from year to year based upon the needs of the State."]
["E.","The Cost for Delivery and Pick Up at Beginning and End of Season shown in Column K is the cost for placement AND removal of the container on the Approximate Date In and Approximate Date Out dates. The cost offered is to be one fee that covers both placement and removal. For example, if the cost offered is $50, this cost covers both placement and removal; not $50 for placement and $50 for removal."]
["F.","The Approximate Date In and Approximate Date Out shown in Columns M and N are the dates the State will require services during the contract year. These dates may vary from year to year depending on the needs of the State."]
["BIDDER INFORMATION"]
["Company Name:",null,null,null,null,null,"Alaska Business License Number\n(if applicable):",null,null,null,"Vendor Number\n(if known):",null,"Email Address:"]
["Authorized Person's Printed Name:",null,null,null,null,null,"Authorized Person's Signature:\nWill Fill Automatically from Authorized Person's Name",null,null,{"$f":"IF(C40=\"\",\"\",C40)","v":""},null,null,"Date signed:"]
["Check the Preferences your company qualifies for:",null,null,null,"Alaska Bidder:",null,"Alaska Veteran's:",null,"Alaska Military Skills Program:",null,null,"Alaskans with Disabilities:",null,"Employment Program:"]
["Amendment Certification:  I acknowledge receipt of the following amendment(s) issued for this ITB:"]

{"sheet":"Year 2","index":1,"n_rows":42,"n_cols":15,"rows_kept":42,"cut":false,"hidden":false,"merged":[[41,0,41,6],[41,8,41,14],[42,0,42,14],[43,0,43,14],[38,0,38,1],[38,2,38,5],[38,6,38,7],[38,8,38,9],[38,12,38,13],[39,0,39,1],[39,2,39,5],[39,6,39,8],[39,9,39,11],[39,12,39,13],[40,0,40,2],[40,8,40,9],[37,0,37,14],[0,0,0,14],[28,0,28,10],[28,12,28,14],[29,0,29,14],[30,0,30,14],[31,1,31,14],[32,1,32,14],[33,1,33,14],[34,1,34,14],[35,1,35,14],[36,1,36,14]]}
[{"$f":"IF('Year 1'!$A$1=\"\",\"\",'Year 1'!$A$1)","v":"BID SCHEDULE FOR ITB 2026-1000-0230"}]
["A.","B.","C.","D.","E.","F.","G.","H.","I.","J.","K.","L.","M.","N.","O."]
["Line Item","Site","Container Size","Qty","Rental                                         Cost per Container                                 ","Number of Weeks","Total Cost, Rental (Sum of Column E x Column F)","Price Per Pick-Up                           per Container","Estimated No. of Pick-Ups","Total Cost, Pick-Ups (Sum of Column H x Column I)","Cost for Delivery and Pick-Up at Beginning and End of Season","Total Cost per Year (Sum of Column G + Column J + Column K)","Approximate Date In    ","Approximate Date Out   ","Scheduled Pick Up Frequency"]
[1,{"$f":"IF('Year 1'!$B$4=\"\",\"\",'Year 1'!$B$4)","v":"Morgan's Landing SRA;\nBy Office;\nBear Resistant Container."},{"$f":"IF('Year 1'!$C$4=\"\",\"\",'Year 1'!$C$4)","v":"4 YD"},1,null,{"$f":"IF('Year 1'!$F$4=\"\",\"\",'Year 1'!$F$4)","v":"52"},{"$f":"IF(E4>1,(E4*F4),\"\")","v":""},null,{"$f":"IF('Year 1'!$I$4=\"\",\"\",'Year 1'!$I$4)","v":44},{"$f":"IF(H4>1,(H4*I4),\"\")","v":""},null,{"$f":"IF(AND(G4>1,J4>1,K4>1),SUM(G4,J4,K4),\"\")","v":""},"Year Round","Year Round",{"$f":"IF('Year 1'!$O$4=\"\",\"\",'Year 1'!$O$4)","v":"November 1 - February 28:  Monthly;\nMarch 1 - June 30 and August 6 - October 31: 1 x Weekly on Thursdays;\nJuly 1 - August 5: Twice Weekly Mondays and Thursdays      "}]
[2,{"$f":"IF('Year 1'!$B$5=\"\",\"\",'Year 1'!$B$5)","v":"Morgan's Landing SRA;\nCampground Overflow Lot Entrance;\nBear Resistant Container."},{"$f":"IF('Year 1'!$C$5=\"\",\"\",'Year 1'!$C$5)","v":"6 YD"},1,null,{"$f":"IF('Year 1'!$F$5=\"\",\"\",'Year 1'!$F$5)","v":16},"",null,{"$f":"IF('Year 1'!$I$5=\"\",\"\",'Year 1'!$I$5)","v":24},"",null,"","2027-05-15","2027-09-15",{"$f":"IF('Year 1'!$O$5=\"\",\"\",'Year 1'!$O$5)","v":"May 15 - June 30 and August 6 - September 15: 1 x Weekly;\nJuly 1 - August 5: Twice Weekly Mondays and Thursdays\n(if needed when we set schedule) "}]
[3,{"$f":"IF('Year 1'!$B$6=\"\",\"\",'Year 1'!$B$6)","v":"Cooper Landing;\nBear Resistant Container."},{"$f":"IF('Year 1'!$C$6=\"\",\"\",'Year 1'!$C$6)","v":"6 YD"},1,null,{"$f":"IF('Year 1'!$F$6=\"\",\"\",'Year 1'!$F$6)","v":24},"",null,{"$f":"IF('Year 1'!$I$6=\"\",\"\",'Year 1'!$I$6)","v":32},"",null,"","2027-05-01","2027-10-31",{"$f":"IF('Year 1'!$O$6=\"\",\"\",'Year 1'!$O$6)","v":"May 1 - June 30 and August 6 - October 31: 1 x Weekly;\nJuly 1 - August 5: Twice Weekly Mondays and Thursdays\n(if needed when we set schedule) "}]
[4,{"$f":"IF('Year 1'!$B$7=\"\",\"\",'Year 1'!$B$7)","v":"Izaak Walton Boat Launch;\nBear Resistant Container."},{"$f":"IF('Year 1'!$C$7=\"\",\"\",'Year 1'!$C$7)","v":"6 YD"},1,null,{"$f":"IF('Year 1'!$F$7=\"\",\"\",'Year 1'!$F$7)","v":16},"",null,{"$f":"IF('Year 1'!$I$7=\"\",\"\",'Year 1'!$I$7)","v":24},"",null,"","2027-05-15","2027-09-15",{"$f":"IF('Year 1'!$O$7=\"\",\"\",'Year 1'!$O$7)","v":"May 15 - June 30 and August 6 - September 15: 1 x Weekly;\nJuly 1 - August 5: Twice Weekly Mondays and Thursdays\n(if needed when we set schedule) "}]
[5,{"$f":"IF('Year 1'!$B$8=\"\",\"\",'Year 1'!$B$8)","v":"Bings Landing SRA;\nUpper Campground;\nBear Resistant Container."},"6 YD",1,null,{"$f":"IF('Year 1'!$F$8=\"\",\"\",'Year 1'!$F$8)","v":16},"",null,{"$f":"IF('Year 1'!$I$8=\"\",\"\",'Year 1'!$I$8)","v":24},"",null,"","2027-05-15","2027-09-15",{"$f":"IF('Year 1'!$O$8=\"\",\"\",'Year 1'!$O$8)","v":"May 15 - June 30 and August 6 - September 15: 1 x Weekly;\nJuly 1 - August 5: Twice Weekly Mondays and Thursdays\n(if needed when we set schedule) "}]
[6,{"$f":"IF('Year 1'!$B$9=\"\",\"\",'Year 1'!$B$9)","v":"Bings Landing SRA;\nBoat Launch;\nBear Resistant Container."},{"$f":"IF('Year 1'!$C$9=\"\",\"\",'Year 1'!$C$9)","v":"6 YD"},1,null,{"$f":"IF('Year 1'!$F$9=\"\",\"\",'Year 1'!$F$9)","v":25},"",null,{"$f":"IF('Year 1'!$I$9=\"\",\"\",'Year 1'!$I$9)","v":33},"",null,"","2027-05-15","2027-10-31",{"$f":"IF('Year 1'!$O$9=\"\",\"\",'Year 1'!$O$9)","v":"May 15 - June 30 and August 6 - October 31: 1 x Weekly;\nJuly 1 - August 5: Twice Weekly Mondays and Thursdays\n(if needed when we set schedule) "}]
[7,{"$f":"IF('Year 1'!$B$10=\"\",\"\",'Year 1'!$B$10)","v":"Bings Landing SRA;\nBings Backline;\nBear Resistant Container."},{"$f":"IF('Year 1'!$C$10=\"\",\"\",'Year 1'!$C$10)","v":"6 YD"},1,null,{"$f":"IF('Year 1'!$F$10=\"\",\"\",'Year 1'!$F$10)","v":16},"",null,{"$f":"IF('Year 1'!$I$10=\"\",\"\",'Year 1'!$I$10)","v":24},"",null,"","2027-05-15","2027-09-15",{"$f":"IF('Year 1'!$O$10=\"\",\"\",'Year 1'!$O$10)","v":"May 15 - June 30 and August 6 - September 15: 1 x Weekly;\nJuly 1 - August 5: Twice Weekly Mondays and Thursdays\n(if needed when we set schedule) "}]
[8,{"$f":"IF('Year 1'!$B$11=\"\",\"\",'Year 1'!$B$11)","v":"Eagle Rock - under construct;\nBear Resistant Container."},{"$f":"IF('Year 1'!$C$11=\"\",\"\",'Year 1'!$C$11)","v":"6 YD"},1,null,{"$f":"IF('Year 1'!$F$11=\"\",\"\",'Year 1'!$F$11)","v":16},"",null,{"$f":"IF('Year 1'!$I$11=\"\",\"\",'Year 1'!$I$11)","v":24},"",null,"","2027-05-15","2027-09-15",{"$f":"IF('Year 1'!$O$11=\"\",\"\",'Year 1'!$O$11)","v":"May 15 - June 30 and August 6 - September 15: 1 x Weekly;\nJuly 1 - August 5: Twice Weekly Mondays and Thursdays\n(if needed when we set schedule) "}]
[9,{"$f":"IF('Year 1'!$B$12=\"\",\"\",'Year 1'!$B$12)","v":"Pillars-under constuction;\nBear Resistant Container."},{"$f":"IF('Year 1'!$C$12=\"\",\"\",'Year 1'!$C$12)","v":"6 YD"},1,null,{"$f":"IF('Year 1'!$F$12=\"\",\"\",'Year 1'!$F$12)","v":16},"",null,{"$f":"IF('Year 1'!$I$12=\"\",\"\",'Year 1'!$I$12)","v":24},"",null,"","2027-05-15","2027-09-15",{"$f":"IF('Year 1'!$O$12=\"\",\"\",'Year 1'!$O$12)","v":"May 15 - June 30 and August 6 - September 15: 1 x Weekly;\nJuly 1 - August 5: Twice Weekly Mondays and Thursdays\n(if needed when we set schedule) "}]
[10,{"$f":"IF('Year 1'!$B$13=\"\",\"\",'Year 1'!$B$13)","v":"Kasilof OKL -under construction;\nBear Resistant Container."},"6 YD",1,null,{"$f":"IF('Year 1'!$F$13=\"\",\"\",'Year 1'!$F$13)","v":24},"",null,{"$f":"IF('Year 1'!$I$13=\"\",\"\",'Year 1'!$I$13)","v":32},"",null,"","2027-05-01","2027-10-31",{"$f":"IF('Year 1'!$O$13=\"\",\"\",'Year 1'!$O$13)","v":"May 1 - June 30 and August 6 - October 31: 1 x Weekly on Thursdays;\nJune 1 - July 1: Twice Weekly on Mondays and Thursdays\n(if needed when we set schedule)"}]
[11,{"$f":"IF('Year 1'!$B$14=\"\",\"\",'Year 1'!$B$14)","v":"Kasilof River SRS;\nEntrance;\nBear Resistant Container"},{"$f":"IF('Year 1'!$C$14=\"\",\"\",'Year 1'!$C$14)","v":"6 YD"},1,null,{"$f":"IF('Year 1'!$F$14=\"\",\"\",'Year 1'!$F$14)","v":20},"",null,{"$f":"IF('Year 1'!$I$14=\"\",\"\",'Year 1'!$I$14)","v":28},"",null,"","2027-05-01","2027-09-15",{"$f":"IF('Year 1'!$O$14=\"\",\"\",'Year 1'!$O$14)","v":"May 1 - June 30 and August 6 - September 15: 1 x Weekly on Thursdays;\nJune 1 - July 1: Twice Weekly on Mondays and Thursdays\n(if needed when we set schedule)"}]
[12,{"$f":"IF('Year 1'!$B$15=\"\",\"\",'Year 1'!$B$15)","v":"Johnson Lake SRA;\nBoat Ramp - Right Loop;\nBear Resistant Container."},"6 YD",1,null,{"$f":"IF('Year 1'!$F$15=\"\",\"\",'Year 1'!$F$15)","v":20},"",null,{"$f":"IF('Year 1'!$I$15=\"\",\"\",'Year 1'!$I$15)","v":28},"",null,"","2027-05-01","2027-09-15",{"$f":"IF('Year 1'!$O$15=\"\",\"\",'Year 1'!$O$15)","v":"May 1 - June 30 and August 6 - September 15: 1 x Weekly on Thursdays;\nJune 1 - July 1: Twice Weekly on Mondays and Thursdays\n(if needed when we set schedule)"}]
[13,{"$f":"IF('Year 1'!$B$16=\"\",\"\",'Year 1'!$B$16)","v":"Johnson Lake SRA;\n1st Latrine - Left Loop;\nBear Resistant Container."},{"$f":"IF('Year 1'!$C$16=\"\",\"\",'Year 1'!$C$16)","v":"6 YD"},1,null,{"$f":"IF('Year 1'!$F$16=\"\",\"\",'Year 1'!$F$16)","v":20},"",null,{"$f":"IF('Year 1'!$I$16=\"\",\"\",'Year 1'!$I$16)","v":28},"",null,"","2027-05-01","2027-09-15",{"$f":"IF('Year 1'!$O$16=\"\",\"\",'Year 1'!$O$16)","v":"May 1 - June 30 and August 6 - September 15: 1 x Weekly on Thursdays;\nJune 1 - July 1: Twice Weekly on Mondays and Thursdays\n(if needed when we set schedule)"}]
[14,{"$f":"IF('Year 1'!$B$17=\"\",\"\",'Year 1'!$B$17)","v":"Crooked Creek SRS;\nDumpster Pad Near Exit;\nBear Resistant Container."},{"$f":"IF('Year 1'!$C$17=\"\",\"\",'Year 1'!$C$17)","v":"6 YD"},1,null,{"$f":"IF('Year 1'!$F$17=\"\",\"\",'Year 1'!$F$17)","v":20},"",null,{"$f":"IF('Year 1'!$I$17=\"\",\"\",'Year 1'!$I$17)","v":28},"",null,"","2027-05-15","2027-09-15",{"$f":"IF('Year 1'!$O$17=\"\",\"\",'Year 1'!$O$17)","v":"May 15 - June 30 and August 6 - September 15: 1 x Weekly on Thursdays;\nJune 1 - July 1: Twice Weekly on Mondays and Thursdays\n(if needed when we set schedule)"}]
[15,{"$f":"IF('Year 1'!$B$18=\"\",\"\",'Year 1'!$B$18)","v":"Clam Gulch SRA;\nFar End - Lower Lot;\nBear Resistant Container."},{"$f":"IF('Year 1'!$C$18=\"\",\"\",'Year 1'!$C$18)","v":"6 YD"},1,null,{"$f":"IF('Year 1'!$F$18=\"\",\"\",'Year 1'!$F$18)","v":20},"",null,{"$f":"IF('Year 1'!$I$18=\"\",\"\",'Year 1'!$I$18)","v":28},"",null,"","2027-05-15","2027-09-15",{"$f":"IF('Year 1'!$O$18=\"\",\"\",'Year 1'!$O$18)","v":"May 15 - June 30 and August 6 - September 15: 1 x Weekly on Thursdays;\nJune 1 - July 1: Twice Weekly on Mondays and Thursdays\n(if needed when we set schedule)"}]
[16,{"$f":"IF('Year 1'!$B$19=\"\",\"\",'Year 1'!$B$19)","v":"Ninilchik SRA ;\nView Campground (Bluff);\nBear Resistant Container."},{"$f":"IF('Year 1'!$C$19=\"\",\"\",'Year 1'!$C$19)","v":"6 YD"},1,null,{"$f":"IF('Year 1'!$F$19=\"\",\"\",'Year 1'!$F$19)","v":20},"",null,{"$f":"IF('Year 1'!$I$19=\"\",\"\",'Year 1'!$I$19)","v":28},"",null,"","2027-05-15","2027-09-15",{"$f":"IF('Year 1'!$O$19=\"\",\"\",'Year 1'!$O$19)","v":"May 15 - June 30 and August 6 - September 15: 1 x Weekly on Thursdays;\nJune 1 - July 1: Twice Weekly on Mondays and Thursdays\n(if needed when we set schedule)"}]
[17,{"$f":"IF('Year 1'!$B$20=\"\",\"\",'Year 1'!$B$20)","v":"Ninilchik SRA;\n1st Outhouse, River Campground;\nBear Resistant Container."},{"$f":"IF('Year 1'!$C$20=\"\",\"\",'Year 1'!$C$20)","v":"6 YD"},1,null,{"$f":"IF('Year 1'!$F$20=\"\",\"\",'Year 1'!$F$20)","v":20},"",null,{"$f":"IF('Year 1'!$I$20=\"\",\"\",'Year 1'!$I$20)","v":28},"",null,"","2027-05-15","2027-09-15",{"$f":"IF('Year 1'!$O$20=\"\",\"\",'Year 1'!$O$20)","v":"May 15 - June 30 and August 6 - September 15: 1 x Weekly on Thursdays;\nJune 1 - July 1: Twice Weekly on Mondays and Thursdays\n(if needed when we set schedule)"}]
[18,{"$f":"IF('Year 1'!$B$21=\"\",\"\",'Year 1'!$B$21)","v":"Ninilchik SRA;\n2nd Outhouse, River Campground;\nBear Resistant Container."},{"$f":"IF('Year 1'!$C$21=\"\",\"\",'Year 1'!$C$21)","v":"6 YD"},1,null,{"$f":"IF('Year 1'!$F$21=\"\",\"\",'Year 1'!$F$21)","v":20},"",null,{"$f":"IF('Year 1'!$I$21=\"\",\"\",'Year 1'!$I$21)","v":28},"",null,"","2027-05-15","2027-09-15",{"$f":"IF('Year 1'!$O$21=\"\",\"\",'Year 1'!$O$21)","v":"May 15 - June 30 and August 6 - September 15: 1 x Weekly on Thursdays;\nJune 1 - July 1: Twice Weekly on Mondays and Thursdays\n(if needed when we set schedule)"}]
[19,{"$f":"IF('Year 1'!$B$22=\"\",\"\",'Year 1'!$B$22)","v":"Ninilchik River Scenic Overview (Pullout North of Ninilchik River on East Side of Sterling Highway);\nAt Dumpster Pad;\nBear Resistant Container."},{"$f":"IF('Year 1'!$C$22=\"\",\"\",'Year 1'!$C$22)","v":"6 YD"},1,null,{"$f":"IF('Year 1'!$F$22=\"\",\"\",'Year 1'!$F$22)","v":20},"",null,{"$f":"IF('Year 1'!$I$22=\"\",\"\",'Year 1'!$I$22)","v":28},"",null,"","2027-05-15","2027-09-15",{"$f":"IF('Year 1'!$O$22=\"\",\"\",'Year 1'!$O$22)","v":"May 15 - June 30 and August 6 - September 15: 1 x Weekly on Thursdays;\nJune 1 - July 1: Twice Weekly on Mondays and Thursdays\n(if needed when we set schedule)"}]
[20,{"$f":"IF('Year 1'!$B$23=\"\",\"\",'Year 1'!$B$23)","v":"Deep Creek SRA;\n1st Outhouse;\nBear Resistant Container."},{"$f":"IF('Year 1'!$C$23=\"\",\"\",'Year 1'!$C$23)","v":"6 YD"},1,null,{"$f":"IF('Year 1'!$F$23=\"\",\"\",'Year 1'!$F$23)","v":20},"",null,{"$f":"IF('Year 1'!$I$23=\"\",\"\",'Year 1'!$I$23)","v":28},"",null,"","2027-05-01","2027-09-15",{"$f":"IF('Year 1'!$O$23=\"\",\"\",'Year 1'!$O$23)","v":"May 1- May 15 and August 6 - September 15: Weekly on Mondays;\nMay 16 - August 5: Twice Weekly on Mondays and Fridays\n(if needed when we schedule)"}]
[21,{"$f":"IF('Year 1'!$B$24=\"\",\"\",'Year 1'!$B$24)","v":"Deep Creek SRA;\n1st Outhouse;\nBear Resistant Container."},{"$f":"IF('Year 1'!$C$24=\"\",\"\",'Year 1'!$C$24)","v":"6 YD"},1,null,{"$f":"IF('Year 1'!$F$24=\"\",\"\",'Year 1'!$F$24)","v":20},"",null,{"$f":"IF('Year 1'!$I$24=\"\",\"\",'Year 1'!$I$24)","v":28},"",null,"","2027-05-01","2027-09-15",{"$f":"IF('Year 1'!$O$24=\"\",\"\",'Year 1'!$O$24)","v":"May 1- May 15 and August 6 - September 15: Weekly on Mondays;\nMay 16 - August 5: Twice Weekly on Mondays and Fridays\n(if needed when we schedule)"}]
[22,{"$f":"IF('Year 1'!$B$25=\"\",\"\",'Year 1'!$B$25)","v":"Deep Creek SRA;\nBoat Ramp Outhouse;\nBear Resistant Container."},{"$f":"IF('Year 1'!$C$25=\"\",\"\",'Year 1'!$C$25)","v":"6 YD"},1,null,{"$f":"IF('Year 1'!$F$25=\"\",\"\",'Year 1'!$F$25)","v":20},"",null,{"$f":"IF('Year 1'!$I$25=\"\",\"\",'Year 1'!$I$25)","v":28},"",null,"","2027-05-15","2027-09-15",{"$f":"IF('Year 1'!$O$25=\"\",\"\",'Year 1'!$O$25)","v":"May 15 - May 15 and August 6 - September 15: Weekly on Mondays;\nMay 16 - August 5: Twice Weekly on Mondays and Fridays\n(if needed when we schedule)"}]
[24,{"$f":"IF('Year 1'!$B$26=\"\",\"\",'Year 1'!$B$26)","v":"Deep Creek South (south pullout near Deep Creek highway bridge);\nPlace dumpster on pavement  opposite of latine in the corner;\nBear Resistant Container."},{"$f":"IF('Year 1'!$C$26=\"\",\"\",'Year 1'!$C$26)","v":"6 YD"},1,null,{"$f":"IF('Year 1'!$F$26=\"\",\"\",'Year 1'!$F$26)","v":20},"",null,{"$f":"IF('Year 1'!$I$26=\"\",\"\",'Year 1'!$I$26)","v":28},"",null,"","2027-05-01","2027-09-15",{"$f":"IF('Year 1'!$O$26=\"\",\"\",'Year 1'!$O$26)","v":"May 1 - May 15 and August 6 - September 15: Weekly on Mondays;\nMay 16 - August 5: Twice Weekly on Mondays and Fridays\n(if needed when we schedule)"}]
[25,{"$f":"IF('Year 1'!$B$27=\"\",\"\",'Year 1'!$B$27)","v":"Deep Creek North (North pullout near Deep Creek Highway Bridge);\nAt Dumpster Pad;\nBear Resistant Container."},{"$f":"IF('Year 1'!$C$27=\"\",\"\",'Year 1'!$C$27)","v":"6 YD"},1,null,{"$f":"IF('Year 1'!$F$27=\"\",\"\",'Year 1'!$F$27)","v":20},"",null,{"$f":"IF('Year 1'!$I$27=\"\",\"\",'Year 1'!$I$27)","v":28},"",null,"","2027-05-01","2027-09-15",{"$f":"IF('Year 1'!$O$27=\"\",\"\",'Year 1'!$O$27)","v":"May 1 - May 15 and August 6 - September 15: Weekly on Mondays;\nMay 16 - August 5: Twice Weekly on Mondays and Fridays\n(if needed when we schedule)"}]
[26,{"$f":"IF('Year 1'!$B$28=\"\",\"\",'Year 1'!$B$28)","v":"Lowell Point - Seward;\nUpper Parking Lot;\nBear Resistant Container."},{"$f":"IF('Year 1'!$C$28=\"\",\"\",'Year 1'!$C$28)","v":"4 YD"},1,null,{"$f":"IF('Year 1'!$F$28=\"\",\"\",'Year 1'!$F$28)","v":52},"",null,{"$f":"IF('Year 1'!$I$28=\"\",\"\",'Year 1'!$I$28)","v":44},"",null,"","Year Round","Year Round",{"$f":"IF('Year 1'!$O$28=\"\",\"\",'Year 1'!$O$28)","v":"November 1 - February 28:  Monthly;\nMarch 1 - June 30 and August 6 - October 31: 1 x Weekly on Thursdays;\nJuly 1 - August 5: Twice Weekly Mondays and Thursdays\n(If needed when we set schedule)    "}]
["TOTAL YEARLY COST",null,null,null,null,null,null,null,null,null,null,{"$f":"IF(AND(L4=\"\",L5=\"\",L7=\"\",L8=\"\",L9=\"\",L10=\"\",L14=\"\",L15=\"\",L16=\"\",L17=\"\",L18=\"\",L19=\"\",L20=\"\",L21=\"\",L22=\"\",L23=\"\",L26=\"\",L27=\"\",L28=\"\"),\"\",SUM(L4:L28))","v":""}]
["Prices do not reflect the Disposal Surcharge and RCA Fee.  Each Fee to be billed as separate line items on invoice. Bidder is to provide a current Surcharges and RCA Fee schedule in a document attached separately to this Bid Schedule"]
["DETAILS FOR BID SCHEDULE"]
["A.",{"$f":"IF('Year 1'!$B$32=\"\",\"\",'Year 1'!$B$32)","v":"Award will be made By Line Item based on the Total Cost Per Year shown in Column L.  There are 26 Line Items and bidders must bid on.  This is the cost that will be evaluated by the State for award of the contract for each line item."}]
["B.",{"$f":"IF('Year 1'!$B$33=\"\",\"\",'Year 1'!$B$33)","v":"Unless otherwise specified, all containers are to be bear-resistant / bear-proof containers."}]
["C.",{"$f":"IF('Year 1'!$B$34=\"\",\"\",'Year 1'!$B$34)","v":"The Number of Months / Weeks shown in Column F is an estimated number based upon the Approximate Date In and Approximate Date Out shown in Columns M and N. This number is an estimate and will be used only for award and evaluation purposes. The actual number of months/weeks may vary from year to year based upon the needs of the State."}]
["D.",{"$f":"IF('Year 1'!$B$35=\"\",\"\",'Year 1'!$B$35)","v":"The Estimated No. of Pick-Ups shown in Column I is an estimated number based upon the services required in the Scheduled Pick Up Frequency (Column O). This number is an estimate only and will be used only for award and evaluation purposes. The actual number of pick ups may vary from year to year based upon the needs of the State."}]
["E.",{"$f":"IF('Year 1'!$B$36=\"\",\"\",'Year 1'!$B$36)","v":"The Cost for Delivery and Pick Up at Beginning and End of Season shown in Column K is the cost for placement AND removal of the container on the Approximate Date In and Approximate Date Out dates. The cost offered is to be one fee that covers both placement and removal. For example, if the cost offered is $50, this cost covers both placement and removal; not $50 for placement and $50 for removal."}]
["F.",{"$f":"IF('Year 1'!$B$37=\"\",\"\",'Year 1'!$B$37)","v":"The Approximate Date In and Approximate Date Out shown in Columns M and N are the dates the State will require services during the contract year. These dates may vary from year to year depending on the needs of the State."}]
["BIDDER INFORMATION"]
["Company Name:",null,{"$f":"IF('Year 1'!$C$39=\"\",\"\",'Year 1'!$C$39)","v":""},null,null,null,"Alaska Business License Number\n(if applicable):",null,{"$f":"IF('Year 1'!$I$39=\"\",\"\",'Year 1'!$I$39)","v":""},null,"Vendor Number\n(if known):",{"$f":"IF('Year 1'!$L$39=\"\",\"\",'Year 1'!$L$39)","v":""},"Email Address:",null,{"$f":"IF('Year 1'!$O$39=\"\",\"\",'Year 1'!$O$39)","v":""}]
["Authorized Person's Printed Name:",null,{"$f":"IF('Year 1'!$C$40=\"\",\"\",'Year 1'!$C$40)","v":""},null,null,null,"Authorized Person's Signature:\nWill Fill Automatically from Authorized Person's Name",null,null,{"$f":"IF(C40=\"\",\"\",C40)","v":""},null,null,"Date signed:"]
["Check the Preferences your company qualifies for:",null,null,null,"Alaska Bidder:",{"$f":"IF('Year 1'!$F$41=\"\",\"\",'Year 1'!$F$41)","v":""},"Alaska Veteran's:",{"$f":"IF('Year 1'!$H$41=\"\",\"\",'Year 1'!$H$41)","v":""},"Alaska Military Skills Program:",null,{"$f":"IF('Year 1'!$K$41=\"\",\"\",'Year 1'!$K$41)","v":""},"Alaskans with Disabilities:",{"$f":"IF('Year 1'!$M$41=\"\",\"\",'Year 1'!$M$41)","v":""},"Employment Program:",{"$f":"IF('Year 1'!$O$41=\"\",\"\",'Year 1'!$O$41)","v":""}]
["Amendment Certification:  I acknowledge receipt of the following amendment(s) issued for this ITB:",null,null,null,null,null,null,{"$f":"IF('Year 1'!$H$42=\"\",\"\",'Year 1'!$H$42)","v":""}]

{"sheet":"Year 3","index":2,"n_rows":42,"n_cols":15,"rows_kept":42,"cut":false,"hidden":false,"merged":[[41,0,41,6],[41,8,41,14],[42,0,42,14],[43,0,43,14],[38,0,38,1],[38,2,38,5],[38,6,38,7],[38,8,38,9],[38,12,38,13],[39,0,39,1],[39,2,39,5],[39,6,39,8],[39,9,39,11],[39,12,39,13],[40,0,40,2],[40,8,40,9],[37,0,37,14],[0,0,0,14],[28,0,28,10],[28,12,28,14],[29,0,29,14],[30,0,30,14],[31,1,31,14],[32,1,32,14],[33,1,33,14],[34,1,34,14],[35,1,35,14],[36,1,36,14]]}
["BID SCHEDULE FOR ITB 2026-1000-0230"]
["A.","B.","C.","D.","E.","F.","G.","H.","I.","J.","K.","L.","M.","N.","O."]
["Line Item","Site","Container Size","Qty","Rental                                         Cost per Container                                 ","Number of Weeks","Total Cost, Rental (Sum of Column E x Column F)","Price Per Pick-Up                           per Container","Estimated No. of Pick-Ups","Total Cost, Pick-Ups (Sum of Column H x Column I)","Cost for Delivery and Pick-Up at Beginning and End of Season","Total Cost per Year (Sum of Column G + Column J + Column K)","Approximate Date In    ","Approximate Date Out   ","Scheduled Pick Up Frequency"]
[1,{"$f":"IF('Year 1'!$B$4=\"\",\"\",'Year 1'!$B$4)","v":"Morgan's Landing SRA;\nBy Office;\nBear Resistant Container."},{"$f":"IF('Year 1'!$C$4=\"\",\"\",'Year 1'!$C$4)","v":"4 YD"},1,null,{"$f":"IF('Year 1'!$F$4=\"\",\"\",'Year 1'!$F$4)","v":"52"},{"$f":"IF(E4>1,(E4*F4),\"\")","v":""},null,{"$f":"IF('Year 1'!$I$4=\"\",\"\",'Year 1'!$I$4)","v":44},{"$f":"IF(H4>1,(H4*I4),\"\")","v":""},null,{"$f":"IF(AND(G4>1,J4>1,K4>1),SUM(G4,J4,K4),\"\")","v":""},"Year Round","Year Round",{"$f":"IF('Year 1'!$O$4=\"\",\"\",'Year 1'!$O$4)","v":"November 1 - February 28:  Monthly;\nMarch 1 - June 30 and August 6 - October 31: 1 x Weekly on Thursdays;\nJuly 1 - August 5: Twice Weekly Mondays and Thursdays      "}]
[2,{"$f":"IF('Year 1'!$B$5=\"\",\"\",'Year 1'!$B$5)","v":"Morgan's Landing SRA;\nCampground Overflow Lot Entrance;\nBear Resistant Container."},{"$f":"IF('Year 1'!$C$5=\"\",\"\",'Year 1'!$C$5)","v":"6 YD"},1,null,{"$f":"IF('Year 1'!$F$5=\"\",\"\",'Year 1'!$F$5)","v":16},"",null,{"$f":"IF('Year 1'!$I$5=\"\",\"\",'Year 1'!$I$5)","v":24},"",null,"","2028-05-15","2028-09-15",{"$f":"IF('Year 1'!$O$5=\"\",\"\",'Year 1'!$O$5)","v":"May 15 - June 30 and August 6 - September 15: 1 x Weekly;\nJuly 1 - August 5: Twice Weekly Mondays and Thursdays\n(if needed when we set schedule) "}]
[3,{"$f":"IF('Year 1'!$B$6=\"\",\"\",'Year 1'!$B$6)","v":"Cooper Landing;\nBear Resistant Container."},{"$f":"IF('Year 1'!$C$6=\"\",\"\",'Year 1'!$C$6)","v":"6 YD"},1,null,{"$f":"IF('Year 1'!$F$6=\"\",\"\",'Year 1'!$F$6)","v":24},"",null,{"$f":"IF('Year 1'!$I$6=\"\",\"\",'Year 1'!$I$6)","v":32},"",null,"","2028-05-01","2028-10-31",{"$f":"IF('Year 1'!$O$6=\"\",\"\",'Year 1'!$O$6)","v":"May 1 - June 30 and August 6 - October 31: 1 x Weekly;\nJuly 1 - August 5: Twice Weekly Mondays and Thursdays\n(if needed when we set schedule) "}]
[4,{"$f":"IF('Year 1'!$B$7=\"\",\"\",'Year 1'!$B$7)","v":"Izaak Walton Boat Launch;\nBear Resistant Container."},{"$f":"IF('Year 1'!$C$7=\"\",\"\",'Year 1'!$C$7)","v":"6 YD"},1,null,{"$f":"IF('Year 1'!$F$7=\"\",\"\",'Year 1'!$F$7)","v":16},"",null,{"$f":"IF('Year 1'!$I$7=\"\",\"\",'Year 1'!$I$7)","v":24},"",null,"","2028-05-15","2028-09-15",{"$f":"IF('Year 1'!$O$7=\"\",\"\",'Year 1'!$O$7)","v":"May 15 - June 30 and August 6 - September 15: 1 x Weekly;\nJuly 1 - August 5: Twice Weekly Mondays and Thursdays\n(if needed when we set schedule) "}]
[5,{"$f":"IF('Year 1'!$B$8=\"\",\"\",'Year 1'!$B$8)","v":"Bings Landing SRA;\nUpper Campground;\nBear Resistant Container."},"6 YD",1,null,{"$f":"IF('Year 1'!$F$8=\"\",\"\",'Year 1'!$F$8)","v":16},"",null,{"$f":"IF('Year 1'!$I$8=\"\",\"\",'Year 1'!$I$8)","v":24},"",null,"","2028-05-15","2028-09-15",{"$f":"IF('Year 1'!$O$8=\"\",\"\",'Year 1'!$O$8)","v":"May 15 - June 30 and August 6 - September 15: 1 x Weekly;\nJuly 1 - August 5: Twice Weekly Mondays and Thursdays\n(if needed when we set schedule) "}]
[6,{"$f":"IF('Year 1'!$B$9=\"\",\"\",'Year 1'!$B$9)","v":"Bings Landing SRA;\nBoat Launch;\nBear Resistant Container."},{"$f":"IF('Year 1'!$C$9=\"\",\"\",'Year 1'!$C$9)","v":"6 YD"},1,null,{"$f":"IF('Year 1'!$F$9=\"\",\"\",'Year 1'!$F$9)","v":25},"",null,{"$f":"IF('Year 1'!$I$9=\"\",\"\",'Year 1'!$I$9)","v":33},"",null,"","2028-05-15","2028-10-31",{"$f":"IF('Year 1'!$O$9=\"\",\"\",'Year 1'!$O$9)","v":"May 15 - June 30 and August 6 - October 31: 1 x Weekly;\nJuly 1 - August 5: Twice Weekly Mondays and Thursdays\n(if needed when we set schedule) "}]
[7,{"$f":"IF('Year 1'!$B$10=\"\",\"\",'Year 1'!$B$10)","v":"Bings Landing SRA;\nBings Backline;\nBear Resistant Container."},{"$f":"IF('Year 1'!$C$10=\"\",\"\",'Year 1'!$C$10)","v":"6 YD"},1,null,{"$f":"IF('Year 1'!$F$10=\"\",\"\",'Year 1'!$F$10)","v":16},"",null,{"$f":"IF('Year 1'!$I$10=\"\",\"\",'Year 1'!$I$10)","v":24},"",null,"","2028-05-15","2028-09-15",{"$f":"IF('Year 1'!$O$10=\"\",\"\",'Year 1'!$O$10)","v":"May 15 - June 30 and August 6 - September 15: 1 x Weekly;\nJuly 1 - August 5: Twice Weekly Mondays and Thursdays\n(if needed when we set schedule) "}]
[8,{"$f":"IF('Year 1'!$B$11=\"\",\"\",'Year 1'!$B$11)","v":"Eagle Rock - under construct;\nBear Resistant Container."},{"$f":"IF('Year 1'!$C$11=\"\",\"\",'Year 1'!$C$11)","v":"6 YD"},1,null,{"$f":"IF('Year 1'!$F$11=\"\",\"\",'Year 1'!$F$11)","v":16},"",null,{"$f":"IF('Year 1'!$I$11=\"\",\"\",'Year 1'!$I$11)","v":24},"",null,"","2028-05-15","2028-09-15",{"$f":"IF('Year 1'!$O$11=\"\",\"\",'Year 1'!$O$11)","v":"May 15 - June 30 and August 6 - September 15: 1 x Weekly;\nJuly 1 - August 5: Twice Weekly Mondays and Thursdays\n(if needed when we set schedule) "}]
[9,{"$f":"IF('Year 1'!$B$12=\"\",\"\",'Year 1'!$B$12)","v":"Pillars-under constuction;\nBear Resistant Container."},{"$f":"IF('Year 1'!$C$12=\"\",\"\",'Year 1'!$C$12)","v":"6 YD"},1,null,{"$f":"IF('Year 1'!$F$12=\"\",\"\",'Year 1'!$F$12)","v":16},"",null,{"$f":"IF('Year 1'!$I$12=\"\",\"\",'Year 1'!$I$12)","v":24},"",null,"","2028-05-15","2028-09-15",{"$f":"IF('Year 1'!$O$12=\"\",\"\",'Year 1'!$O$12)","v":"May 15 - June 30 and August 6 - September 15: 1 x Weekly;\nJuly 1 - August 5: Twice Weekly Mondays and Thursdays\n(if needed when we set schedule) "}]
[10,{"$f":"IF('Year 1'!$B$13=\"\",\"\",'Year 1'!$B$13)","v":"Kasilof OKL -under construction;\nBear Resistant Container."},"6 YD",1,null,{"$f":"IF('Year 1'!$F$13=\"\",\"\",'Year 1'!$F$13)","v":24},"",null,{"$f":"IF('Year 1'!$I$13=\"\",\"\",'Year 1'!$I$13)","v":32},"",null,"","2028-05-01","2028-10-31",{"$f":"IF('Year 1'!$O$13=\"\",\"\",'Year 1'!$O$13)","v":"May 1 - June 30 and August 6 - October 31: 1 x Weekly on Thursdays;\nJune 1 - July 1: Twice Weekly on Mondays and Thursdays\n(if needed when we set schedule)"}]
[11,{"$f":"IF('Year 1'!$B$14=\"\",\"\",'Year 1'!$B$14)","v":"Kasilof River SRS;\nEntrance;\nBear Resistant Container"},{"$f":"IF('Year 1'!$C$14=\"\",\"\",'Year 1'!$C$14)","v":"6 YD"},1,null,{"$f":"IF('Year 1'!$F$14=\"\",\"\",'Year 1'!$F$14)","v":20},"",null,{"$f":"IF('Year 1'!$I$14=\"\",\"\",'Year 1'!$I$14)","v":28},"",null,"","2028-05-01","2028-09-15",{"$f":"IF('Year 1'!$O$14=\"\",\"\",'Year 1'!$O$14)","v":"May 1 - June 30 and August 6 - September 15: 1 x Weekly on Thursdays;\nJune 1 - July 1: Twice Weekly on Mondays and Thursdays\n(if needed when we set schedule)"}]
[12,{"$f":"IF('Year 1'!$B$15=\"\",\"\",'Year 1'!$B$15)","v":"Johnson Lake SRA;\nBoat Ramp - Right Loop;\nBear Resistant Container."},"6 YD",1,null,{"$f":"IF('Year 1'!$F$15=\"\",\"\",'Year 1'!$F$15)","v":20},"",null,{"$f":"IF('Year 1'!$I$15=\"\",\"\",'Year 1'!$I$15)","v":28},"",null,"","2028-05-01","2028-09-15",{"$f":"IF('Year 1'!$O$15=\"\",\"\",'Year 1'!$O$15)","v":"May 1 - June 30 and August 6 - September 15: 1 x Weekly on Thursdays;\nJune 1 - July 1: Twice Weekly on Mondays and Thursdays\n(if needed when we set schedule)"}]
[13,{"$f":"IF('Year 1'!$B$16=\"\",\"\",'Year 1'!$B$16)","v":"Johnson Lake SRA;\n1st Latrine - Left Loop;\nBear Resistant Container."},{"$f":"IF('Year 1'!$C$16=\"\",\"\",'Year 1'!$C$16)","v":"6 YD"},1,null,{"$f":"IF('Year 1'!$F$16=\"\",\"\",'Year 1'!$F$16)","v":20},"",null,{"$f":"IF('Year 1'!$I$16=\"\",\"\",'Year 1'!$I$16)","v":28},"",null,"","2028-05-01","2028-09-15",{"$f":"IF('Year 1'!$O$16=\"\",\"\",'Year 1'!$O$16)","v":"May 1 - June 30 and August 6 - September 15: 1 x Weekly on Thursdays;\nJune 1 - July 1: Twice Weekly on Mondays and Thursdays\n(if needed when we set schedule)"}]
[14,{"$f":"IF('Year 1'!$B$17=\"\",\"\",'Year 1'!$B$17)","v":"Crooked Creek SRS;\nDumpster Pad Near Exit;\nBear Resistant Container."},{"$f":"IF('Year 1'!$C$17=\"\",\"\",'Year 1'!$C$17)","v":"6 YD"},1,null,{"$f":"IF('Year 1'!$F$17=\"\",\"\",'Year 1'!$F$17)","v":20},"",null,{"$f":"IF('Year 1'!$I$17=\"\",\"\",'Year 1'!$I$17)","v":28},"",null,"","2028-05-15","2028-09-15",{"$f":"IF('Year 1'!$O$17=\"\",\"\",'Year 1'!$O$17)","v":"May 15 - June 30 and August 6 - September 15: 1 x Weekly on Thursdays;\nJune 1 - July 1: Twice Weekly on Mondays and Thursdays\n(if needed when we set schedule)"}]
[15,{"$f":"IF('Year 1'!$B$18=\"\",\"\",'Year 1'!$B$18)","v":"Clam Gulch SRA;\nFar End - Lower Lot;\nBear Resistant Container."},{"$f":"IF('Year 1'!$C$18=\"\",\"\",'Year 1'!$C$18)","v":"6 YD"},1,null,{"$f":"IF('Year 1'!$F$18=\"\",\"\",'Year 1'!$F$18)","v":20},"",null,{"$f":"IF('Year 1'!$I$18=\"\",\"\",'Year 1'!$I$18)","v":28},"",null,"","2028-05-15","2028-09-15",{"$f":"IF('Year 1'!$O$18=\"\",\"\",'Year 1'!$O$18)","v":"May 15 - June 30 and August 6 - September 15: 1 x Weekly on Thursdays;\nJune 1 - July 1: Twice Weekly on Mondays and Thursdays\n(if needed when we set schedule)"}]
[16,{"$f":"IF('Year 1'!$B$19=\"\",\"\",'Year 1'!$B$19)","v":"Ninilchik SRA ;\nView Campground (Bluff);\nBear Resistant Container."},{"$f":"IF('Year 1'!$C$19=\"\",\"\",'Year 1'!$C$19)","v":"6 YD"},1,null,{"$f":"IF('Year 1'!$F$19=\"\",\"\",'Year 1'!$F$19)","v":20},"",null,{"$f":"IF('Year 1'!$I$19=\"\",\"\",'Year 1'!$I$19)","v":28},"",null,"","2028-05-15","2028-09-15",{"$f":"IF('Year 1'!$O$19=\"\",\"\",'Year 1'!$O$19)","v":"May 15 - June 30 and August 6 - September 15: 1 x Weekly on Thursdays;\nJune 1 - July 1: Twice Weekly on Mondays and Thursdays\n(if needed when we set schedule)"}]
[17,{"$f":"IF('Year 1'!$B$20=\"\",\"\",'Year 1'!$B$20)","v":"Ninilchik SRA;\n1st Outhouse, River Campground;\nBear Resistant Container."},{"$f":"IF('Year 1'!$C$20=\"\",\"\",'Year 1'!$C$20)","v":"6 YD"},1,null,{"$f":"IF('Year 1'!$F$20=\"\",\"\",'Year 1'!$F$20)","v":20},"",null,{"$f":"IF('Year 1'!$I$20=\"\",\"\",'Year 1'!$I$20)","v":28},"",null,"","2028-05-15","2028-09-15",{"$f":"IF('Year 1'!$O$20=\"\",\"\",'Year 1'!$O$20)","v":"May 15 - June 30 and August 6 - September 15: 1 x Weekly on Thursdays;\nJune 1 - July 1: Twice Weekly on Mondays and Thursdays\n(if needed when we set schedule)"}]
[18,{"$f":"IF('Year 1'!$B$21=\"\",\"\",'Year 1'!$B$21)","v":"Ninilchik SRA;\n2nd Outhouse, River Campground;\nBear Resistant Container."},{"$f":"IF('Year 1'!$C$21=\"\",\"\",'Year 1'!$C$21)","v":"6 YD"},1,null,{"$f":"IF('Year 1'!$F$21=\"\",\"\",'Year 1'!$F$21)","v":20},"",null,{"$f":"IF('Year 1'!$I$21=\"\",\"\",'Year 1'!$I$21)","v":28},"",null,"","2028-05-15","2028-09-15",{"$f":"IF('Year 1'!$O$21=\"\",\"\",'Year 1'!$O$21)","v":"May 15 - June 30 and August 6 - September 15: 1 x Weekly on Thursdays;\nJune 1 - July 1: Twice Weekly on Mondays and Thursdays\n(if needed when we set schedule)"}]
[19,{"$f":"IF('Year 1'!$B$22=\"\",\"\",'Year 1'!$B$22)","v":"Ninilchik River Scenic Overview (Pullout North of Ninilchik River on East Side of Sterling Highway);\nAt Dumpster Pad;\nBear Resistant Container."},{"$f":"IF('Year 1'!$C$22=\"\",\"\",'Year 1'!$C$22)","v":"6 YD"},1,null,{"$f":"IF('Year 1'!$F$22=\"\",\"\",'Year 1'!$F$22)","v":20},"",null,{"$f":"IF('Year 1'!$I$22=\"\",\"\",'Year 1'!$I$22)","v":28},"",null,"","2028-05-15","2028-09-15",{"$f":"IF('Year 1'!$O$22=\"\",\"\",'Year 1'!$O$22)","v":"May 15 - June 30 and August 6 - September 15: 1 x Weekly on Thursdays;\nJune 1 - July 1: Twice Weekly on Mondays and Thursdays\n(if needed when we set schedule)"}]
[20,{"$f":"IF('Year 1'!$B$23=\"\",\"\",'Year 1'!$B$23)","v":"Deep Creek SRA;\n1st Outhouse;\nBear Resistant Container."},{"$f":"IF('Year 1'!$C$23=\"\",\"\",'Year 1'!$C$23)","v":"6 YD"},1,null,{"$f":"IF('Year 1'!$F$23=\"\",\"\",'Year 1'!$F$23)","v":20},"",null,{"$f":"IF('Year 1'!$I$23=\"\",\"\",'Year 1'!$I$23)","v":28},"",null,"","2028-05-01","2028-09-15",{"$f":"IF('Year 1'!$O$23=\"\",\"\",'Year 1'!$O$23)","v":"May 1- May 15 and August 6 - September 15: Weekly on Mondays;\nMay 16 - August 5: Twice Weekly on Mondays and Fridays\n(if needed when we schedule)"}]
[21,{"$f":"IF('Year 1'!$B$24=\"\",\"\",'Year 1'!$B$24)","v":"Deep Creek SRA;\n1st Outhouse;\nBear Resistant Container."},{"$f":"IF('Year 1'!$C$24=\"\",\"\",'Year 1'!$C$24)","v":"6 YD"},1,null,{"$f":"IF('Year 1'!$F$24=\"\",\"\",'Year 1'!$F$24)","v":20},"",null,{"$f":"IF('Year 1'!$I$24=\"\",\"\",'Year 1'!$I$24)","v":28},"",null,"","2028-05-01","2028-09-15",{"$f":"IF('Year 1'!$O$24=\"\",\"\",'Year 1'!$O$24)","v":"May 1- May 15 and August 6 - September 15: Weekly on Mondays;\nMay 16 - August 5: Twice Weekly on Mondays and Fridays\n(if needed when we schedule)"}]
[22,{"$f":"IF('Year 1'!$B$25=\"\",\"\",'Year 1'!$B$25)","v":"Deep Creek SRA;\nBoat Ramp Outhouse;\nBear Resistant Container."},{"$f":"IF('Year 1'!$C$25=\"\",\"\",'Year 1'!$C$25)","v":"6 YD"},1,null,{"$f":"IF('Year 1'!$F$25=\"\",\"\",'Year 1'!$F$25)","v":20},"",null,{"$f":"IF('Year 1'!$I$25=\"\",\"\",'Year 1'!$I$25)","v":28},"",null,"","2028-05-15","2028-09-15",{"$f":"IF('Year 1'!$O$25=\"\",\"\",'Year 1'!$O$25)","v":"May 15 - May 15 and August 6 - September 15: Weekly on Mondays;\nMay 16 - August 5: Twice Weekly on Mondays and Fridays\n(if needed when we schedule)"}]
[24,{"$f":"IF('Year 1'!$B$26=\"\",\"\",'Year 1'!$B$26)","v":"Deep Creek South (south pullout near Deep Creek highway bridge);\nPlace dumpster on pavement  opposite of latine in the corner;\nBear Resistant Container."},{"$f":"IF('Year 1'!$C$26=\"\",\"\",'Year 1'!$C$26)","v":"6 YD"},1,null,{"$f":"IF('Year 1'!$F$26=\"\",\"\",'Year 1'!$F$26)","v":20},"",null,{"$f":"IF('Year 1'!$I$26=\"\",\"\",'Year 1'!$I$26)","v":28},"",null,"","2028-05-01","2028-09-15",{"$f":"IF('Year 1'!$O$26=\"\",\"\",'Year 1'!$O$26)","v":"May 1 - May 15 and August 6 - September 15: Weekly on Mondays;\nMay 16 - August 5: Twice Weekly on Mondays and Fridays\n(if needed when we schedule)"}]
[25,{"$f":"IF('Year 1'!$B$27=\"\",\"\",'Year 1'!$B$27)","v":"Deep Creek North (North pullout near Deep Creek Highway Bridge);\nAt Dumpster Pad;\nBear Resistant Container."},{"$f":"IF('Year 1'!$C$27=\"\",\"\",'Year 1'!$C$27)","v":"6 YD"},1,null,{"$f":"IF('Year 1'!$F$27=\"\",\"\",'Year 1'!$F$27)","v":20},"",null,{"$f":"IF('Year 1'!$I$27=\"\",\"\",'Year 1'!$I$27)","v":28},"",null,"","2028-05-01","2028-09-15",{"$f":"IF('Year 1'!$O$27=\"\",\"\",'Year 1'!$O$27)","v":"May 1 - May 15 and August 6 - September 15: Weekly on Mondays;\nMay 16 - August 5: Twice Weekly on Mondays and Fridays\n(if needed when we schedule)"}]
[26,{"$f":"IF('Year 1'!$B$28=\"\",\"\",'Year 1'!$B$28)","v":"Lowell Point - Seward;\nUpper Parking Lot;\nBear Resistant Container."},{"$f":"IF('Year 1'!$C$28=\"\",\"\",'Year 1'!$C$28)","v":"4 YD"},1,null,{"$f":"IF('Year 1'!$F$28=\"\",\"\",'Year 1'!$F$28)","v":52},"",null,{"$f":"IF('Year 1'!$I$28=\"\",\"\",'Year 1'!$I$28)","v":44},"",null,"","Year Round","Year Round",{"$f":"IF('Year 1'!$O$28=\"\",\"\",'Year 1'!$O$28)","v":"November 1 - February 28:  Monthly;\nMarch 1 - June 30 and August 6 - October 31: 1 x Weekly on Thursdays;\nJuly 1 - August 5: Twice Weekly Mondays and Thursdays\n(If needed when we set schedule)    "}]
["TOTAL YEARLY COST",null,null,null,null,null,null,null,null,null,null,{"$f":"IF(AND(L4=\"\",L5=\"\",L7=\"\",L8=\"\",L9=\"\",L10=\"\",L14=\"\",L15=\"\",L16=\"\",L17=\"\",L18=\"\",L19=\"\",L20=\"\",L21=\"\",L22=\"\",L23=\"\",L26=\"\",L27=\"\",L28=\"\"),\"\",SUM(L4:L28))","v":""}]
["Prices do not reflect the Disposal Surcharge and RCA Fee.  Each Fee to be billed as separate line items on invoice. Bidder is to provide a current Surcharges and RCA Fee schedule in a document attached separately to this Bid Schedule"]
["DETAILS FOR BID SCHEDULE"]
["A.",{"$f":"IF('Year 1'!$B$32=\"\",\"\",'Year 1'!$B$32)","v":"Award will be made By Line Item based on the Total Cost Per Year shown in Column L.  There are 26 Line Items and bidders must bid on.  This is the cost that will be evaluated by the State for award of the contract for each line item."}]
["B.",{"$f":"IF('Year 1'!$B$33=\"\",\"\",'Year 1'!$B$33)","v":"Unless otherwise specified, all containers are to be bear-resistant / bear-proof containers."}]
["C.",{"$f":"IF('Year 1'!$B$34=\"\",\"\",'Year 1'!$B$34)","v":"The Number of Months / Weeks shown in Column F is an estimated number based upon the Approximate Date In and Approximate Date Out shown in Columns M and N. This number is an estimate and will be used only for award and evaluation purposes. The actual number of months/weeks may vary from year to year based upon the needs of the State."}]
["D.",{"$f":"IF('Year 1'!$B$35=\"\",\"\",'Year 1'!$B$35)","v":"The Estimated No. of Pick-Ups shown in Column I is an estimated number based upon the services required in the Scheduled Pick Up Frequency (Column O). This number is an estimate only and will be used only for award and evaluation purposes. The actual number of pick ups may vary from year to year based upon the needs of the State."}]
["E.",{"$f":"IF('Year 1'!$B$36=\"\",\"\",'Year 1'!$B$36)","v":"The Cost for Delivery and Pick Up at Beginning and End of Season shown in Column K is the cost for placement AND removal of the container on the Approximate Date In and Approximate Date Out dates. The cost offered is to be one fee that covers both placement and removal. For example, if the cost offered is $50, this cost covers both placement and removal; not $50 for placement and $50 for removal."}]
["F.",{"$f":"IF('Year 1'!$B$37=\"\",\"\",'Year 1'!$B$37)","v":"The Approximate Date In and Approximate Date Out shown in Columns M and N are the dates the State will require services during the contract year. These dates may vary from year to year depending on the needs of the State."}]
["BIDDER INFORMATION"]
["Company Name:",null,{"$f":"IF('Year 1'!$C$39=\"\",\"\",'Year 1'!$C$39)","v":""},null,null,null,"Alaska Business License Number\n(if applicable):",null,{"$f":"IF('Year 1'!$I$39=\"\",\"\",'Year 1'!$I$39)","v":""},null,"Vendor Number\n(if known):",{"$f":"IF('Year 1'!$L$39=\"\",\"\",'Year 1'!$L$39)","v":""},"Email Address:",null,{"$f":"IF('Year 1'!$O$39=\"\",\"\",'Year 1'!$O$39)","v":""}]
["Authorized Person's Printed Name:",null,{"$f":"IF('Year 1'!$C$40=\"\",\"\",'Year 1'!$C$40)","v":""},null,null,null,"Authorized Person's Signature:\nWill Fill Automatically from Authorized Person's Name",null,null,{"$f":"IF(C40=\"\",\"\",C40)","v":""},null,null,"Date signed:"]
["Check the Preferences your company qualifies for:",null,null,null,"Alaska Bidder:",{"$f":"IF('Year 1'!$F$41=\"\",\"\",'Year 1'!$F$41)","v":""},"Alaska Veteran's:",{"$f":"IF('Year 1'!$H$41=\"\",\"\",'Year 1'!$H$41)","v":""},"Alaska Military Skills Program:",null,{"$f":"IF('Year 1'!$K$41=\"\",\"\",'Year 1'!$K$41)","v":""},"Alaskans with Disabilities:",{"$f":"IF('Year 1'!$M$41=\"\",\"\",'Year 1'!$M$41)","v":""},"Employment Program:",{"$f":"IF('Year 1'!$O$41=\"\",\"\",'Year 1'!$O$41)","v":""}]
["Amendment Certification:  I acknowledge receipt of the following amendment(s) issued for this ITB:",null,null,null,null,null,null,{"$f":"IF('Year 1'!$H$42=\"\",\"\",'Year 1'!$H$42)","v":""}]

{"sheet":"Year 4","index":3,"n_rows":42,"n_cols":15,"rows_kept":42,"cut":false,"hidden":false,"merged":[[41,0,41,6],[41,8,41,14],[42,0,42,14],[43,0,43,14],[38,0,38,1],[38,2,38,5],[38,6,38,7],[38,8,38,9],[38,12,38,13],[39,0,39,1],[39,2,39,5],[39,6,39,8],[39,9,39,11],[39,12,39,13],[40,0,40,2],[40,8,40,9],[37,0,37,14],[0,0,0,14],[28,0,28,10],[28,12,28,14],[29,0,29,14],[30,0,30,14],[31,1,31,14],[32,1,32,14],[33,1,33,14],[34,1,34,14],[35,1,35,14],[36,1,36,14]]}
["BID SCHEDULE FOR ITB 2026-1000-0230"]
["A.","B.","C.","D.","E.","F.","G.","H.","I.","J.","K.","L.","M.","N.","O."]
["Line Item","Site","Container Size","Qty","Rental                                         Cost per Container                                 ","Number of Weeks","Total Cost, Rental (Sum of Column E x Column F)","Price Per Pick-Up                           per Container","Estimated No. of Pick-Ups","Total Cost, Pick-Ups (Sum of Column H x Column I)","Cost for Delivery and Pick-Up at Beginning and End of Season","Total Cost per Year (Sum of Column G + Column J + Column K)","Approximate Date In    ","Approximate Date Out   ","Scheduled Pick Up Frequency"]
[1,{"$f":"IF('Year 1'!$B$4=\"\",\"\",'Year 1'!$B$4)","v":"Morgan's Landing SRA;\nBy Office;\nBear Resistant Container."},{"$f":"IF('Year 1'!$C$4=\"\",\"\",'Year 1'!$C$4)","v":"4 YD"},1,null,{"$f":"IF('Year 1'!$F$4=\"\",\"\",'Year 1'!$F$4)","v":"52"},{"$f":"IF(E4>1,(E4*F4),\"\")","v":""},null,{"$f":"IF('Year 1'!$I$4=\"\",\"\",'Year 1'!$I$4)","v":44},{"$f":"IF(H4>1,(H4*I4),\"\")","v":""},null,{"$f":"IF(AND(G4>1,J4>1,K4>1),SUM(G4,J4,K4),\"\")","v":""},"Year Round","Year Round",{"$f":"IF('Year 1'!$O$4=\"\",\"\",'Year 1'!$O$4)","v":"November 1 - February 28:  Monthly;\nMarch 1 - June 30 and August 6 - October 31: 1 x Weekly on Thursdays;\nJuly 1 - August 5: Twice Weekly Mondays and Thursdays      "}]
[2,{"$f":"IF('Year 1'!$B$5=\"\",\"\",'Year 1'!$B$5)","v":"Morgan's Landing SRA;\nCampground Overflow Lot Entrance;\nBear Resistant Container."},{"$f":"IF('Year 1'!$C$5=\"\",\"\",'Year 1'!$C$5)","v":"6 YD"},1,null,{"$f":"IF('Year 1'!$F$5=\"\",\"\",'Year 1'!$F$5)","v":16},"",null,{"$f":"IF('Year 1'!$I$5=\"\",\"\",'Year 1'!$I$5)","v":24},"",null,"","2029-05-15","2029-09-15",{"$f":"IF('Year 1'!$O$5=\"\",\"\",'Year 1'!$O$5)","v":"May 15 - June 30 and August 6 - September 15: 1 x Weekly;\nJuly 1 - August 5: Twice Weekly Mondays and Thursdays\n(if needed when we set schedule) "}]
[3,{"$f":"IF('Year 1'!$B$6=\"\",\"\",'Year 1'!$B$6)","v":"Cooper Landing;\nBear Resistant Container."},{"$f":"IF('Year 1'!$C$6=\"\",\"\",'Year 1'!$C$6)","v":"6 YD"},1,null,{"$f":"IF('Year 1'!$F$6=\"\",\"\",'Year 1'!$F$6)","v":24},"",null,{"$f":"IF('Year 1'!$I$6=\"\",\"\",'Year 1'!$I$6)","v":32},"",null,"","2029-05-01","2029-10-31",{"$f":"IF('Year 1'!$O$6=\"\",\"\",'Year 1'!$O$6)","v":"May 1 - June 30 and August 6 - October 31: 1 x Weekly;\nJuly 1 - August 5: Twice Weekly Mondays and Thursdays\n(if needed when we set schedule) "}]
[4,{"$f":"IF('Year 1'!$B$7=\"\",\"\",'Year 1'!$B$7)","v":"Izaak Walton Boat Launch;\nBear Resistant Container."},{"$f":"IF('Year 1'!$C$7=\"\",\"\",'Year 1'!$C$7)","v":"6 YD"},1,null,{"$f":"IF('Year 1'!$F$7=\"\",\"\",'Year 1'!$F$7)","v":16},"",null,{"$f":"IF('Year 1'!$I$7=\"\",\"\",'Year 1'!$I$7)","v":24},"",null,"","2029-05-15","2029-09-15",{"$f":"IF('Year 1'!$O$7=\"\",\"\",'Year 1'!$O$7)","v":"May 15 - June 30 and August 6 - September 15: 1 x Weekly;\nJuly 1 - August 5: Twice Weekly Mondays and Thursdays\n(if needed when we set schedule) "}]
[5,{"$f":"IF('Year 1'!$B$8=\"\",\"\",'Year 1'!$B$8)","v":"Bings Landing SRA;\nUpper Campground;\nBear Resistant Container."},"6 YD",1,null,{"$f":"IF('Year 1'!$F$8=\"\",\"\",'Year 1'!$F$8)","v":16},"",null,{"$f":"IF('Year 1'!$I$8=\"\",\"\",'Year 1'!$I$8)","v":24},"",null,"","2029-05-15","2029-09-15",{"$f":"IF('Year 1'!$O$8=\"\",\"\",'Year 1'!$O$8)","v":"May 15 - June 30 and August 6 - September 15: 1 x Weekly;\nJuly 1 - August 5: Twice Weekly Mondays and Thursdays\n(if needed when we set schedule) "}]
[6,{"$f":"IF('Year 1'!$B$9=\"\",\"\",'Year 1'!$B$9)","v":"Bings Landing SRA;\nBoat Launch;\nBear Resistant Container."},{"$f":"IF('Year 1'!$C$9=\"\",\"\",'Year 1'!$C$9)","v":"6 YD"},1,null,{"$f":"IF('Year 1'!$F$9=\"\",\"\",'Year 1'!$F$9)","v":25},"",null,{"$f":"IF('Year 1'!$I$9=\"\",\"\",'Year 1'!$I$9)","v":33},"",null,"","2029-05-15","2029-10-31",{"$f":"IF('Year 1'!$O$9=\"\",\"\",'Year 1'!$O$9)","v":"May 15 - June 30 and August 6 - October 31: 1 x Weekly;\nJuly 1 - August 5: Twice Weekly Mondays and Thursdays\n(if needed when we set schedule) "}]
[7,{"$f":"IF('Year 1'!$B$10=\"\",\"\",'Year 1'!$B$10)","v":"Bings Landing SRA;\nBings Backline;\nBear Resistant Container."},{"$f":"IF('Year 1'!$C$10=\"\",\"\",'Year 1'!$C$10)","v":"6 YD"},1,null,{"$f":"IF('Year 1'!$F$10=\"\",\"\",'Year 1'!$F$10)","v":16},"",null,{"$f":"IF('Year 1'!$I$10=\"\",\"\",'Year 1'!$I$10)","v":24},"",null,"","2029-05-15","2029-09-15",{"$f":"IF('Year 1'!$O$10=\"\",\"\",'Year 1'!$O$10)","v":"May 15 - June 30 and August 6 - September 15: 1 x Weekly;\nJuly 1 - August 5: Twice Weekly Mondays and Thursdays\n(if needed when we set schedule) "}]
[8,{"$f":"IF('Year 1'!$B$11=\"\",\"\",'Year 1'!$B$11)","v":"Eagle Rock - under construct;\nBear Resistant Container."},{"$f":"IF('Year 1'!$C$11=\"\",\"\",'Year 1'!$C$11)","v":"6 YD"},1,null,{"$f":"IF('Year 1'!$F$11=\"\",\"\",'Year 1'!$F$11)","v":16},"",null,{"$f":"IF('Year 1'!$I$11=\"\",\"\",'Year 1'!$I$11)","v":24},"",null,"","2029-05-15","2029-09-15",{"$f":"IF('Year 1'!$O$11=\"\",\"\",'Year 1'!$O$11)","v":"May 15 - June 30 and August 6 - September 15: 1 x Weekly;\nJuly 1 - August 5: Twice Weekly Mondays and Thursdays\n(if needed when we set schedule) "}]
[9,{"$f":"IF('Year 1'!$B$12=\"\",\"\",'Year 1'!$B$12)","v":"Pillars-under constuction;\nBear Resistant Container."},{"$f":"IF('Year 1'!$C$12=\"\",\"\",'Year 1'!$C$12)","v":"6 YD"},1,null,{"$f":"IF('Year 1'!$F$12=\"\",\"\",'Year 1'!$F$12)","v":16},"",null,{"$f":"IF('Year 1'!$I$12=\"\",\"\",'Year 1'!$I$12)","v":24},"",null,"","2029-05-15","2029-09-15",{"$f":"IF('Year 1'!$O$12=\"\",\"\",'Year 1'!$O$12)","v":"May 15 - June 30 and August 6 - September 15: 1 x Weekly;\nJuly 1 - August 5: Twice Weekly Mondays and Thursdays\n(if needed when we set schedule) "}]
[10,{"$f":"IF('Year 1'!$B$13=\"\",\"\",'Year 1'!$B$13)","v":"Kasilof OKL -under construction;\nBear Resistant Container."},"6 YD",1,null,{"$f":"IF('Year 1'!$F$13=\"\",\"\",'Year 1'!$F$13)","v":24},"",null,{"$f":"IF('Year 1'!$I$13=\"\",\"\",'Year 1'!$I$13)","v":32},"",null,"","2029-05-01","2029-10-31",{"$f":"IF('Year 1'!$O$13=\"\",\"\",'Year 1'!$O$13)","v":"May 1 - June 30 and August 6 - October 31: 1 x Weekly on Thursdays;\nJune 1 - July 1: Twice Weekly on Mondays and Thursdays\n(if needed when we set schedule)"}]
[11,{"$f":"IF('Year 1'!$B$14=\"\",\"\",'Year 1'!$B$14)","v":"Kasilof River SRS;\nEntrance;\nBear Resistant Container"},{"$f":"IF('Year 1'!$C$14=\"\",\"\",'Year 1'!$C$14)","v":"6 YD"},1,null,{"$f":"IF('Year 1'!$F$14=\"\",\"\",'Year 1'!$F$14)","v":20},"",null,{"$f":"IF('Year 1'!$I$14=\"\",\"\",'Year 1'!$I$14)","v":28},"",null,"","2029-05-01","2029-09-15",{"$f":"IF('Year 1'!$O$14=\"\",\"\",'Year 1'!$O$14)","v":"May 1 - June 30 and August 6 - September 15: 1 x Weekly on Thursdays;\nJune 1 - July 1: Twice Weekly on Mondays and Thursdays\n(if needed when we set schedule)"}]
[12,{"$f":"IF('Year 1'!$B$15=\"\",\"\",'Year 1'!$B$15)","v":"Johnson Lake SRA;\nBoat Ramp - Right Loop;\nBear Resistant Container."},"6 YD",1,null,{"$f":"IF('Year 1'!$F$15=\"\",\"\",'Year 1'!$F$15)","v":20},"",null,{"$f":"IF('Year 1'!$I$15=\"\",\"\",'Year 1'!$I$15)","v":28},"",null,"","2029-05-01","2029-09-15",{"$f":"IF('Year 1'!$O$15=\"\",\"\",'Year 1'!$O$15)","v":"May 1 - June 30 and August 6 - September 15: 1 x Weekly on Thursdays;\nJune 1 - July 1: Twice Weekly on Mondays and Thursdays\n(if needed when we set schedule)"}]
[13,{"$f":"IF('Year 1'!$B$16=\"\",\"\",'Year 1'!$B$16)","v":"Johnson Lake SRA;\n1st Latrine - Left Loop;\nBear Resistant Container."},{"$f":"IF('Year 1'!$C$16=\"\",\"\",'Year 1'!$C$16)","v":"6 YD"},1,null,{"$f":"IF('Year 1'!$F$16=\"\",\"\",'Year 1'!$F$16)","v":20},"",null,{"$f":"IF('Year 1'!$I$16=\"\",\"\",'Year 1'!$I$16)","v":28},"",null,"","2029-05-01","2029-09-15",{"$f":"IF('Year 1'!$O$16=\"\",\"\",'Year 1'!$O$16)","v":"May 1 - June 30 and August 6 - September 15: 1 x Weekly on Thursdays;\nJune 1 - July 1: Twice Weekly on Mondays and Thursdays\n(if needed when we set schedule)"}]
[14,{"$f":"IF('Year 1'!$B$17=\"\",\"\",'Year 1'!$B$17)","v":"Crooked Creek SRS;\nDumpster Pad Near Exit;\nBear Resistant Container."},{"$f":"IF('Year 1'!$C$17=\"\",\"\",'Year 1'!$C$17)","v":"6 YD"},1,null,{"$f":"IF('Year 1'!$F$17=\"\",\"\",'Year 1'!$F$17)","v":20},"",null,{"$f":"IF('Year 1'!$I$17=\"\",\"\",'Year 1'!$I$17)","v":28},"",null,"","2029-05-15","2029-09-15",{"$f":"IF('Year 1'!$O$17=\"\",\"\",'Year 1'!$O$17)","v":"May 15 - June 30 and August 6 - September 15: 1 x Weekly on Thursdays;\nJune 1 - July 1: Twice Weekly on Mondays and Thursdays\n(if needed when we set schedule)"}]
[15,{"$f":"IF('Year 1'!$B$18=\"\",\"\",'Year 1'!$B$18)","v":"Clam Gulch SRA;\nFar End - Lower Lot;\nBear Resistant Container."},{"$f":"IF('Year 1'!$C$18=\"\",\"\",'Year 1'!$C$18)","v":"6 YD"},1,null,{"$f":"IF('Year 1'!$F$18=\"\",\"\",'Year 1'!$F$18)","v":20},"",null,{"$f":"IF('Year 1'!$I$18=\"\",\"\",'Year 1'!$I$18)","v":28},"",null,"","2029-05-15","2029-09-15",{"$f":"IF('Year 1'!$O$18=\"\",\"\",'Year 1'!$O$18)","v":"May 15 - June 30 and August 6 - September 15: 1 x Weekly on Thursdays;\nJune 1 - July 1: Twice Weekly on Mondays and Thursdays\n(if needed when we set schedule)"}]
[16,{"$f":"IF('Year 1'!$B$19=\"\",\"\",'Year 1'!$B$19)","v":"Ninilchik SRA ;\nView Campground (Bluff);\nBear Resistant Container."},{"$f":"IF('Year 1'!$C$19=\"\",\"\",'Year 1'!$C$19)","v":"6 YD"},1,null,{"$f":"IF('Year 1'!$F$19=\"\",\"\",'Year 1'!$F$19)","v":20},"",null,{"$f":"IF('Year 1'!$I$19=\"\",\"\",'Year 1'!$I$19)","v":28},"",null,"","2029-05-15","2029-09-15",{"$f":"IF('Year 1'!$O$19=\"\",\"\",'Year 1'!$O$19)","v":"May 15 - June 30 and August 6 - September 15: 1 x Weekly on Thursdays;\nJune 1 - July 1: Twice Weekly on Mondays and Thursdays\n(if needed when we set schedule)"}]
[17,{"$f":"IF('Year 1'!$B$20=\"\",\"\",'Year 1'!$B$20)","v":"Ninilchik SRA;\n1st Outhouse, River Campground;\nBear Resistant Container."},{"$f":"IF('Year 1'!$C$20=\"\",\"\",'Year 1'!$C$20)","v":"6 YD"},1,null,{"$f":"IF('Year 1'!$F$20=\"\",\"\",'Year 1'!$F$20)","v":20},"",null,{"$f":"IF('Year 1'!$I$20=\"\",\"\",'Year 1'!$I$20)","v":28},"",null,"","2029-05-15","2029-09-15",{"$f":"IF('Year 1'!$O$20=\"\",\"\",'Year 1'!$O$20)","v":"May 15 - June 30 and August 6 - September 15: 1 x Weekly on Thursdays;\nJune 1 - July 1: Twice Weekly on Mondays and Thursdays\n(if needed when we set schedule)"}]
[18,{"$f":"IF('Year 1'!$B$21=\"\",\"\",'Year 1'!$B$21)","v":"Ninilchik SRA;\n2nd Outhouse, River Campground;\nBear Resistant Container."},{"$f":"IF('Year 1'!$C$21=\"\",\"\",'Year 1'!$C$21)","v":"6 YD"},1,null,{"$f":"IF('Year 1'!$F$21=\"\",\"\",'Year 1'!$F$21)","v":20},"",null,{"$f":"IF('Year 1'!$I$21=\"\",\"\",'Year 1'!$I$21)","v":28},"",null,"","2029-05-15","2029-09-15",{"$f":"IF('Year 1'!$O$21=\"\",\"\",'Year 1'!$O$21)","v":"May 15 - June 30 and August 6 - September 15: 1 x Weekly on Thursdays;\nJune 1 - July 1: Twice Weekly on Mondays and Thursdays\n(if needed when we set schedule)"}]
[19,{"$f":"IF('Year 1'!$B$22=\"\",\"\",'Year 1'!$B$22)","v":"Ninilchik River Scenic Overview (Pullout North of Ninilchik River on East Side of Sterling Highway);\nAt Dumpster Pad;\nBear Resistant Container."},{"$f":"IF('Year 1'!$C$22=\"\",\"\",'Year 1'!$C$22)","v":"6 YD"},1,null,{"$f":"IF('Year 1'!$F$22=\"\",\"\",'Year 1'!$F$22)","v":20},"",null,{"$f":"IF('Year 1'!$I$22=\"\",\"\",'Year 1'!$I$22)","v":28},"",null,"","2029-05-15","2029-09-15",{"$f":"IF('Year 1'!$O$22=\"\",\"\",'Year 1'!$O$22)","v":"May 15 - June 30 and August 6 - September 15: 1 x Weekly on Thursdays;\nJune 1 - July 1: Twice Weekly on Mondays and Thursdays\n(if needed when we set schedule)"}]
[20,{"$f":"IF('Year 1'!$B$23=\"\",\"\",'Year 1'!$B$23)","v":"Deep Creek SRA;\n1st Outhouse;\nBear Resistant Container."},{"$f":"IF('Year 1'!$C$23=\"\",\"\",'Year 1'!$C$23)","v":"6 YD"},1,null,{"$f":"IF('Year 1'!$F$23=\"\",\"\",'Year 1'!$F$23)","v":20},"",null,{"$f":"IF('Year 1'!$I$23=\"\",\"\",'Year 1'!$I$23)","v":28},"",null,"","2029-05-01","2029-09-15",{"$f":"IF('Year 1'!$O$23=\"\",\"\",'Year 1'!$O$23)","v":"May 1- May 15 and August 6 - September 15: Weekly on Mondays;\nMay 16 - August 5: Twice Weekly on Mondays and Fridays\n(if needed when we schedule)"}]
[21,{"$f":"IF('Year 1'!$B$24=\"\",\"\",'Year 1'!$B$24)","v":"Deep Creek SRA;\n1st Outhouse;\nBear Resistant Container."},{"$f":"IF('Year 1'!$C$24=\"\",\"\",'Year 1'!$C$24)","v":"6 YD"},1,null,{"$f":"IF('Year 1'!$F$24=\"\",\"\",'Year 1'!$F$24)","v":20},"",null,{"$f":"IF('Year 1'!$I$24=\"\",\"\",'Year 1'!$I$24)","v":28},"",null,"","2029-05-01","2029-09-15",{"$f":"IF('Year 1'!$O$24=\"\",\"\",'Year 1'!$O$24)","v":"May 1- May 15 and August 6 - September 15: Weekly on Mondays;\nMay 16 - August 5: Twice Weekly on Mondays and Fridays\n(if needed when we schedule)"}]
[22,{"$f":"IF('Year 1'!$B$25=\"\",\"\",'Year 1'!$B$25)","v":"Deep Creek SRA;\nBoat Ramp Outhouse;\nBear Resistant Container."},{"$f":"IF('Year 1'!$C$25=\"\",\"\",'Year 1'!$C$25)","v":"6 YD"},1,null,{"$f":"IF('Year 1'!$F$25=\"\",\"\",'Year 1'!$F$25)","v":20},"",null,{"$f":"IF('Year 1'!$I$25=\"\",\"\",'Year 1'!$I$25)","v":28},"",null,"","2029-05-15","2029-09-15",{"$f":"IF('Year 1'!$O$25=\"\",\"\",'Year 1'!$O$25)","v":"May 15 - May 15 and August 6 - September 15: Weekly on Mondays;\nMay 16 - August 5: Twice Weekly on Mondays and Fridays\n(if needed when we schedule)"}]
[24,{"$f":"IF('Year 1'!$B$26=\"\",\"\",'Year 1'!$B$26)","v":"Deep Creek South (south pullout near Deep Creek highway bridge);\nPlace dumpster on pavement  opposite of latine in the corner;\nBear Resistant Container."},{"$f":"IF('Year 1'!$C$26=\"\",\"\",'Year 1'!$C$26)","v":"6 YD"},1,null,{"$f":"IF('Year 1'!$F$26=\"\",\"\",'Year 1'!$F$26)","v":20},"",null,{"$f":"IF('Year 1'!$I$26=\"\",\"\",'Year 1'!$I$26)","v":28},"",null,"","2029-05-01","2029-09-15",{"$f":"IF('Year 1'!$O$26=\"\",\"\",'Year 1'!$O$26)","v":"May 1 - May 15 and August 6 - September 15: Weekly on Mondays;\nMay 16 - August 5: Twice Weekly on Mondays and Fridays\n(if needed when we schedule)"}]
[25,{"$f":"IF('Year 1'!$B$27=\"\",\"\",'Year 1'!$B$27)","v":"Deep Creek North (North pullout near Deep Creek Highway Bridge);\nAt Dumpster Pad;\nBear Resistant Container."},{"$f":"IF('Year 1'!$C$27=\"\",\"\",'Year 1'!$C$27)","v":"6 YD"},1,null,{"$f":"IF('Year 1'!$F$27=\"\",\"\",'Year 1'!$F$27)","v":20},"",null,{"$f":"IF('Year 1'!$I$27=\"\",\"\",'Year 1'!$I$27)","v":28},"",null,"","2029-05-01","2029-09-15",{"$f":"IF('Year 1'!$O$27=\"\",\"\",'Year 1'!$O$27)","v":"May 1 - May 15 and August 6 - September 15: Weekly on Mondays;\nMay 16 - August 5: Twice Weekly on Mondays and Fridays\n(if needed when we schedule)"}]
[26,{"$f":"IF('Year 1'!$B$28=\"\",\"\",'Year 1'!$B$28)","v":"Lowell Point - Seward;\nUpper Parking Lot;\nBear Resistant Container."},{"$f":"IF('Year 1'!$C$28=\"\",\"\",'Year 1'!$C$28)","v":"4 YD"},1,null,{"$f":"IF('Year 1'!$F$28=\"\",\"\",'Year 1'!$F$28)","v":52},"",null,{"$f":"IF('Year 1'!$I$28=\"\",\"\",'Year 1'!$I$28)","v":44},"",null,"","Year Round","Year Round",{"$f":"IF('Year 1'!$O$28=\"\",\"\",'Year 1'!$O$28)","v":"November 1 - February 28:  Monthly;\nMarch 1 - June 30 and August 6 - October 31: 1 x Weekly on Thursdays;\nJuly 1 - August 5: Twice Weekly Mondays and Thursdays\n(If needed when we set schedule)    "}]
["TOTAL YEARLY COST",null,null,null,null,null,null,null,null,null,null,{"$f":"IF(AND(L4=\"\",L5=\"\",L7=\"\",L8=\"\",L9=\"\",L10=\"\",L14=\"\",L15=\"\",L16=\"\",L17=\"\",L18=\"\",L19=\"\",L20=\"\",L21=\"\",L22=\"\",L23=\"\",L26=\"\",L27=\"\",L28=\"\"),\"\",SUM(L4:L28))","v":""}]
["Prices do not reflect the Disposal Surcharge and RCA Fee.  Each Fee to be billed as separate line items on invoice. Bidder is to provide a current Surcharges and RCA Fee schedule in a document attached separately to this Bid Schedule"]
["DETAILS FOR BID SCHEDULE"]
["A.",{"$f":"IF('Year 1'!$B$32=\"\",\"\",'Year 1'!$B$32)","v":"Award will be made By Line Item based on the Total Cost Per Year shown in Column L.  There are 26 Line Items and bidders must bid on.  This is the cost that will be evaluated by the State for award of the contract for each line item."}]
["B.",{"$f":"IF('Year 1'!$B$33=\"\",\"\",'Year 1'!$B$33)","v":"Unless otherwise specified, all containers are to be bear-resistant / bear-proof containers."}]
["C.",{"$f":"IF('Year 1'!$B$34=\"\",\"\",'Year 1'!$B$34)","v":"The Number of Months / Weeks shown in Column F is an estimated number based upon the Approximate Date In and Approximate Date Out shown in Columns M and N. This number is an estimate and will be used only for award and evaluation purposes. The actual number of months/weeks may vary from year to year based upon the needs of the State."}]
["D.",{"$f":"IF('Year 1'!$B$35=\"\",\"\",'Year 1'!$B$35)","v":"The Estimated No. of Pick-Ups shown in Column I is an estimated number based upon the services required in the Scheduled Pick Up Frequency (Column O). This number is an estimate only and will be used only for award and evaluation purposes. The actual number of pick ups may vary from year to year based upon the needs of the State."}]
["E.",{"$f":"IF('Year 1'!$B$36=\"\",\"\",'Year 1'!$B$36)","v":"The Cost for Delivery and Pick Up at Beginning and End of Season shown in Column K is the cost for placement AND removal of the container on the Approximate Date In and Approximate Date Out dates. The cost offered is to be one fee that covers both placement and removal. For example, if the cost offered is $50, this cost covers both placement and removal; not $50 for placement and $50 for removal."}]
["F.",{"$f":"IF('Year 1'!$B$37=\"\",\"\",'Year 1'!$B$37)","v":"The Approximate Date In and Approximate Date Out shown in Columns M and N are the dates the State will require services during the contract year. These dates may vary from year to year depending on the needs of the State."}]
["BIDDER INFORMATION"]
["Company Name:",null,{"$f":"IF('Year 1'!$C$39=\"\",\"\",'Year 1'!$C$39)","v":""},null,null,null,"Alaska Business License Number\n(if applicable):",null,{"$f":"IF('Year 1'!$I$39=\"\",\"\",'Year 1'!$I$39)","v":""},null,"Vendor Number\n(if known):",{"$f":"IF('Year 1'!$L$39=\"\",\"\",'Year 1'!$L$39)","v":""},"Email Address:",null,{"$f":"IF('Year 1'!$O$39=\"\",\"\",'Year 1'!$O$39)","v":""}]
["Authorized Person's Printed Name:",null,{"$f":"IF('Year 1'!$C$40=\"\",\"\",'Year 1'!$C$40)","v":""},null,null,null,"Authorized Person's Signature:\nWill Fill Automatically from Authorized Person's Name",null,null,{"$f":"IF(C40=\"\",\"\",C40)","v":""},null,null,"Date signed:"]
["Check the Preferences your company qualifies for:",null,null,null,"Alaska Bidder:",{"$f":"IF('Year 1'!$F$41=\"\",\"\",'Year 1'!$F$41)","v":""},"Alaska Veteran's:",{"$f":"IF('Year 1'!$H$41=\"\",\"\",'Year 1'!$H$41)","v":""},"Alaska Military Skills Program:",null,{"$f":"IF('Year 1'!$K$41=\"\",\"\",'Year 1'!$K$41)","v":""},"Alaskans with Disabilities:",{"$f":"IF('Year 1'!$M$41=\"\",\"\",'Year 1'!$M$41)","v":""},"Employment Program:",{"$f":"IF('Year 1'!$O$41=\"\",\"\",'Year 1'!$O$41)","v":""}]
["Amendment Certification:  I acknowledge receipt of the following amendment(s) issued for this ITB:",null,null,null,null,null,null,{"$f":"IF('Year 1'!$H$42=\"\",\"\",'Year 1'!$H$42)","v":""}]

{"sheet":"Year 5","index":4,"n_rows":42,"n_cols":15,"rows_kept":42,"cut":false,"hidden":false,"merged":[[41,0,41,6],[41,8,41,14],[42,0,42,14],[43,0,43,14],[38,0,38,1],[38,2,38,5],[38,6,38,7],[38,8,38,9],[38,12,38,13],[39,0,39,1],[39,2,39,5],[39,6,39,8],[39,9,39,11],[39,12,39,13],[40,0,40,2],[40,8,40,9],[37,0,37,14],[0,0,0,14],[28,0,28,10],[28,12,28,14],[29,0,29,14],[30,0,30,14],[31,1,31,14],[32,1,32,14],[33,1,33,14],[34,1,34,14],[35,1,35,14],[36,1,36,14]]}
["BID SCHEDULE FOR ITB 2026-1000-0230"]
["A.","B.","C.","D.","E.","F.","G.","H.","I.","J.","K.","L.","M.","N.","O."]
["Line Item","Site","Container Size","Qty","Rental                                         Cost per Container                                 ","Number of Weeks","Total Cost, Rental (Sum of Column E x Column F)","Price Per Pick-Up                           per Container","Estimated No. of Pick-Ups","Total Cost, Pick-Ups (Sum of Column H x Column I)","Cost for Delivery and Pick-Up at Beginning and End of Season","Total Cost per Year (Sum of Column G + Column J + Column K)","Approximate Date In    ","Approximate Date Out   ","Scheduled Pick Up Frequency"]
[1,{"$f":"IF('Year 1'!$B$4=\"\",\"\",'Year 1'!$B$4)","v":"Morgan's Landing SRA;\nBy Office;\nBear Resistant Container."},{"$f":"IF('Year 1'!$C$4=\"\",\"\",'Year 1'!$C$4)","v":"4 YD"},1,null,{"$f":"IF('Year 1'!$F$4=\"\",\"\",'Year 1'!$F$4)","v":"52"},{"$f":"IF(E4>1,(E4*F4),\"\")","v":""},null,{"$f":"IF('Year 1'!$I$4=\"\",\"\",'Year 1'!$I$4)","v":44},{"$f":"IF(H4>1,(H4*I4),\"\")","v":""},null,{"$f":"IF(AND(G4>1,J4>1,K4>1),SUM(G4,J4,K4),\"\")","v":""},"Year Round","Year Round",{"$f":"IF('Year 1'!$O$4=\"\",\"\",'Year 1'!$O$4)","v":"November 1 - February 28:  Monthly;\nMarch 1 - June 30 and August 6 - October 31: 1 x Weekly on Thursdays;\nJuly 1 - August 5: Twice Weekly Mondays and Thursdays      "}]
[2,{"$f":"IF('Year 1'!$B$5=\"\",\"\",'Year 1'!$B$5)","v":"Morgan's Landing SRA;\nCampground Overflow Lot Entrance;\nBear Resistant Container."},{"$f":"IF('Year 1'!$C$5=\"\",\"\",'Year 1'!$C$5)","v":"6 YD"},1,null,{"$f":"IF('Year 1'!$F$5=\"\",\"\",'Year 1'!$F$5)","v":16},"",null,{"$f":"IF('Year 1'!$I$5=\"\",\"\",'Year 1'!$I$5)","v":24},"",null,"","2030-05-15","2030-09-15",{"$f":"IF('Year 1'!$O$5=\"\",\"\",'Year 1'!$O$5)","v":"May 15 - June 30 and August 6 - September 15: 1 x Weekly;\nJuly 1 - August 5: Twice Weekly Mondays and Thursdays\n(if needed when we set schedule) "}]
[3,{"$f":"IF('Year 1'!$B$6=\"\",\"\",'Year 1'!$B$6)","v":"Cooper Landing;\nBear Resistant Container."},{"$f":"IF('Year 1'!$C$6=\"\",\"\",'Year 1'!$C$6)","v":"6 YD"},1,null,{"$f":"IF('Year 1'!$F$6=\"\",\"\",'Year 1'!$F$6)","v":24},"",null,{"$f":"IF('Year 1'!$I$6=\"\",\"\",'Year 1'!$I$6)","v":32},"",null,"","2030-05-01","2030-10-31",{"$f":"IF('Year 1'!$O$6=\"\",\"\",'Year 1'!$O$6)","v":"May 1 - June 30 and August 6 - October 31: 1 x Weekly;\nJuly 1 - August 5: Twice Weekly Mondays and Thursdays\n(if needed when we set schedule) "}]
[4,{"$f":"IF('Year 1'!$B$7=\"\",\"\",'Year 1'!$B$7)","v":"Izaak Walton Boat Launch;\nBear Resistant Container."},{"$f":"IF('Year 1'!$C$7=\"\",\"\",'Year 1'!$C$7)","v":"6 YD"},1,null,{"$f":"IF('Year 1'!$F$7=\"\",\"\",'Year 1'!$F$7)","v":16},"",null,{"$f":"IF('Year 1'!$I$7=\"\",\"\",'Year 1'!$I$7)","v":24},"",null,"","2030-05-15","2030-09-15",{"$f":"IF('Year 1'!$O$7=\"\",\"\",'Year 1'!$O$7)","v":"May 15 - June 30 and August 6 - September 15: 1 x Weekly;\nJuly 1 - August 5: Twice Weekly Mondays and Thursdays\n(if needed when we set schedule) "}]
[5,{"$f":"IF('Year 1'!$B$8=\"\",\"\",'Year 1'!$B$8)","v":"Bings Landing SRA;\nUpper Campground;\nBear Resistant Container."},"6 YD",1,null,{"$f":"IF('Year 1'!$F$8=\"\",\"\",'Year 1'!$F$8)","v":16},"",null,{"$f":"IF('Year 1'!$I$8=\"\",\"\",'Year 1'!$I$8)","v":24},"",null,"","2030-05-15","2030-09-15",{"$f":"IF('Year 1'!$O$8=\"\",\"\",'Year 1'!$O$8)","v":"May 15 - June 30 and August 6 - September 15: 1 x Weekly;\nJuly 1 - August 5: Twice Weekly Mondays and Thursdays\n(if needed when we set schedule) "}]
[6,{"$f":"IF('Year 1'!$B$9=\"\",\"\",'Year 1'!$B$9)","v":"Bings Landing SRA;\nBoat Launch;\nBear Resistant Container."},{"$f":"IF('Year 1'!$C$9=\"\",\"\",'Year 1'!$C$9)","v":"6 YD"},1,null,{"$f":"IF('Year 1'!$F$9=\"\",\"\",'Year 1'!$F$9)","v":25},"",null,{"$f":"IF('Year 1'!$I$9=\"\",\"\",'Year 1'!$I$9)","v":33},"",null,"","2030-05-15","2030-10-31",{"$f":"IF('Year 1'!$O$9=\"\",\"\",'Year 1'!$O$9)","v":"May 15 - June 30 and August 6 - October 31: 1 x Weekly;\nJuly 1 - August 5: Twice Weekly Mondays and Thursdays\n(if needed when we set schedule) "}]
[7,{"$f":"IF('Year 1'!$B$10=\"\",\"\",'Year 1'!$B$10)","v":"Bings Landing SRA;\nBings Backline;\nBear Resistant Container."},{"$f":"IF('Year 1'!$C$10=\"\",\"\",'Year 1'!$C$10)","v":"6 YD"},1,null,{"$f":"IF('Year 1'!$F$10=\"\",\"\",'Year 1'!$F$10)","v":16},"",null,{"$f":"IF('Year 1'!$I$10=\"\",\"\",'Year 1'!$I$10)","v":24},"",null,"","2030-05-15","2030-09-15",{"$f":"IF('Year 1'!$O$10=\"\",\"\",'Year 1'!$O$10)","v":"May 15 - June 30 and August 6 - September 15: 1 x Weekly;\nJuly 1 - August 5: Twice Weekly Mondays and Thursdays\n(if needed when we set schedule) "}]
[8,{"$f":"IF('Year 1'!$B$11=\"\",\"\",'Year 1'!$B$11)","v":"Eagle Rock - under construct;\nBear Resistant Container."},{"$f":"IF('Year 1'!$C$11=\"\",\"\",'Year 1'!$C$11)","v":"6 YD"},1,null,{"$f":"IF('Year 1'!$F$11=\"\",\"\",'Year 1'!$F$11)","v":16},"",null,{"$f":"IF('Year 1'!$I$11=\"\",\"\",'Year 1'!$I$11)","v":24},"",null,"","2030-05-15","2030-09-15",{"$f":"IF('Year 1'!$O$11=\"\",\"\",'Year 1'!$O$11)","v":"May 15 - June 30 and August 6 - September 15: 1 x Weekly;\nJuly 1 - August 5: Twice Weekly Mondays and Thursdays\n(if needed when we set schedule) "}]
[9,{"$f":"IF('Year 1'!$B$12=\"\",\"\",'Year 1'!$B$12)","v":"Pillars-under constuction;\nBear Resistant Container."},{"$f":"IF('Year 1'!$C$12=\"\",\"\",'Year 1'!$C$12)","v":"6 YD"},1,null,{"$f":"IF('Year 1'!$F$12=\"\",\"\",'Year 1'!$F$12)","v":16},"",null,{"$f":"IF('Year 1'!$I$12=\"\",\"\",'Year 1'!$I$12)","v":24},"",null,"","2030-05-15","2030-09-15",{"$f":"IF('Year 1'!$O$12=\"\",\"\",'Year 1'!$O$12)","v":"May 15 - June 30 and August 6 - September 15: 1 x Weekly;\nJuly 1 - August 5: Twice Weekly Mondays and Thursdays\n(if needed when we set schedule) "}]
[10,{"$f":"IF('Year 1'!$B$13=\"\",\"\",'Year 1'!$B$13)","v":"Kasilof OKL -under construction;\nBear Resistant Container."},"6 YD",1,null,{"$f":"IF('Year 1'!$F$13=\"\",\"\",'Year 1'!$F$13)","v":24},"",null,{"$f":"IF('Year 1'!$I$13=\"\",\"\",'Year 1'!$I$13)","v":32},"",null,"","2030-05-01","2030-10-31",{"$f":"IF('Year 1'!$O$13=\"\",\"\",'Year 1'!$O$13)","v":"May 1 - June 30 and August 6 - October 31: 1 x Weekly on Thursdays;\nJune 1 - July 1: Twice Weekly on Mondays and Thursdays\n(if needed when we set schedule)"}]
[11,{"$f":"IF('Year 1'!$B$14=\"\",\"\",'Year 1'!$B$14)","v":"Kasilof River SRS;\nEntrance;\nBear Resistant Container"},{"$f":"IF('Year 1'!$C$14=\"\",\"\",'Year 1'!$C$14)","v":"6 YD"},1,null,{"$f":"IF('Year 1'!$F$14=\"\",\"\",'Year 1'!$F$14)","v":20},"",null,{"$f":"IF('Year 1'!$I$14=\"\",\"\",'Year 1'!$I$14)","v":28},"",null,"","2030-05-01","2030-09-15",{"$f":"IF('Year 1'!$O$14=\"\",\"\",'Year 1'!$O$14)","v":"May 1 - June 30 and August 6 - September 15: 1 x Weekly on Thursdays;\nJune 1 - July 1: Twice Weekly on Mondays and Thursdays\n(if needed when we set schedule)"}]
[12,{"$f":"IF('Year 1'!$B$15=\"\",\"\",'Year 1'!$B$15)","v":"Johnson Lake SRA;\nBoat Ramp - Right Loop;\nBear Resistant Container."},"6 YD",1,null,{"$f":"IF('Year 1'!$F$15=\"\",\"\",'Year 1'!$F$15)","v":20},"",null,{"$f":"IF('Year 1'!$I$15=\"\",\"\",'Year 1'!$I$15)","v":28},"",null,"","2030-05-01","2030-09-15",{"$f":"IF('Year 1'!$O$15=\"\",\"\",'Year 1'!$O$15)","v":"May 1 - June 30 and August 6 - September 15: 1 x Weekly on Thursdays;\nJune 1 - July 1: Twice Weekly on Mondays and Thursdays\n(if needed when we set schedule)"}]
[13,{"$f":"IF('Year 1'!$B$16=\"\",\"\",'Year 1'!$B$16)","v":"Johnson Lake SRA;\n1st Latrine - Left Loop;\nBear Resistant Container."},{"$f":"IF('Year 1'!$C$16=\"\",\"\",'Year 1'!$C$16)","v":"6 YD"},1,null,{"$f":"IF('Year 1'!$F$16=\"\",\"\",'Year 1'!$F$16)","v":20},"",null,{"$f":"IF('Year 1'!$I$16=\"\",\"\",'Year 1'!$I$16)","v":28},"",null,"","2030-05-01","2030-09-15",{"$f":"IF('Year 1'!$O$16=\"\",\"\",'Year 1'!$O$16)","v":"May 1 - June 30 and August 6 - September 15: 1 x Weekly on Thursdays;\nJune 1 - July 1: Twice Weekly on Mondays and Thursdays\n(if needed when we set schedule)"}]
[14,{"$f":"IF('Year 1'!$B$17=\"\",\"\",'Year 1'!$B$17)","v":"Crooked Creek SRS;\nDumpster Pad Near Exit;\nBear Resistant Container."},{"$f":"IF('Year 1'!$C$17=\"\",\"\",'Year 1'!$C$17)","v":"6 YD"},1,null,{"$f":"IF('Year 1'!$F$17=\"\",\"\",'Year 1'!$F$17)","v":20},"",null,{"$f":"IF('Year 1'!$I$17=\"\",\"\",'Year 1'!$I$17)","v":28},"",null,"","2030-05-15","2030-09-15",{"$f":"IF('Year 1'!$O$17=\"\",\"\",'Year 1'!$O$17)","v":"May 15 - June 30 and August 6 - September 15: 1 x Weekly on Thursdays;\nJune 1 - July 1: Twice Weekly on Mondays and Thursdays\n(if needed when we set schedule)"}]
[15,{"$f":"IF('Year 1'!$B$18=\"\",\"\",'Year 1'!$B$18)","v":"Clam Gulch SRA;\nFar End - Lower Lot;\nBear Resistant Container."},{"$f":"IF('Year 1'!$C$18=\"\",\"\",'Year 1'!$C$18)","v":"6 YD"},1,null,{"$f":"IF('Year 1'!$F$18=\"\",\"\",'Year 1'!$F$18)","v":20},"",null,{"$f":"IF('Year 1'!$I$18=\"\",\"\",'Year 1'!$I$18)","v":28},"",null,"","2030-05-15","2030-09-15",{"$f":"IF('Year 1'!$O$18=\"\",\"\",'Year 1'!$O$18)","v":"May 15 - June 30 and August 6 - September 15: 1 x Weekly on Thursdays;\nJune 1 - July 1: Twice Weekly on Mondays and Thursdays\n(if needed when we set schedule)"}]
[16,{"$f":"IF('Year 1'!$B$19=\"\",\"\",'Year 1'!$B$19)","v":"Ninilchik SRA ;\nView Campground (Bluff);\nBear Resistant Container."},{"$f":"IF('Year 1'!$C$19=\"\",\"\",'Year 1'!$C$19)","v":"6 YD"},1,null,{"$f":"IF('Year 1'!$F$19=\"\",\"\",'Year 1'!$F$19)","v":20},"",null,{"$f":"IF('Year 1'!$I$19=\"\",\"\",'Year 1'!$I$19)","v":28},"",null,"","2030-05-15","2030-09-15",{"$f":"IF('Year 1'!$O$19=\"\",\"\",'Year 1'!$O$19)","v":"May 15 - June 30 and August 6 - September 15: 1 x Weekly on Thursdays;\nJune 1 - July 1: Twice Weekly on Mondays and Thursdays\n(if needed when we set schedule)"}]
[17,{"$f":"IF('Year 1'!$B$20=\"\",\"\",'Year 1'!$B$20)","v":"Ninilchik SRA;\n1st Outhouse, River Campground;\nBear Resistant Container."},{"$f":"IF('Year 1'!$C$20=\"\",\"\",'Year 1'!$C$20)","v":"6 YD"},1,null,{"$f":"IF('Year 1'!$F$20=\"\",\"\",'Year 1'!$F$20)","v":20},"",null,{"$f":"IF('Year 1'!$I$20=\"\",\"\",'Year 1'!$I$20)","v":28},"",null,"","2030-05-15","2030-09-15",{"$f":"IF('Year 1'!$O$20=\"\",\"\",'Year 1'!$O$20)","v":"May 15 - June 30 and August 6 - September 15: 1 x Weekly on Thursdays;\nJune 1 - July 1: Twice Weekly on Mondays and Thursdays\n(if needed when we set schedule)"}]
[18,{"$f":"IF('Year 1'!$B$21=\"\",\"\",'Year 1'!$B$21)","v":"Ninilchik SRA;\n2nd Outhouse, River Campground;\nBear Resistant Container."},{"$f":"IF('Year 1'!$C$21=\"\",\"\",'Year 1'!$C$21)","v":"6 YD"},1,null,{"$f":"IF('Year 1'!$F$21=\"\",\"\",'Year 1'!$F$21)","v":20},"",null,{"$f":"IF('Year 1'!$I$21=\"\",\"\",'Year 1'!$I$21)","v":28},"",null,"","2030-05-15","2030-09-15",{"$f":"IF('Year 1'!$O$21=\"\",\"\",'Year 1'!$O$21)","v":"May 15 - June 30 and August 6 - September 15: 1 x Weekly on Thursdays;\nJune 1 - July 1: Twice Weekly on Mondays and Thursdays\n(if needed when we set schedule)"}]
[19,{"$f":"IF('Year 1'!$B$22=\"\",\"\",'Year 1'!$B$22)","v":"Ninilchik River Scenic Overview (Pullout North of Ninilchik River on East Side of Sterling Highway);\nAt Dumpster Pad;\nBear Resistant Container."},{"$f":"IF('Year 1'!$C$22=\"\",\"\",'Year 1'!$C$22)","v":"6 YD"},1,null,{"$f":"IF('Year 1'!$F$22=\"\",\"\",'Year 1'!$F$22)","v":20},"",null,{"$f":"IF('Year 1'!$I$22=\"\",\"\",'Year 1'!$I$22)","v":28},"",null,"","2030-05-15","2030-09-15",{"$f":"IF('Year 1'!$O$22=\"\",\"\",'Year 1'!$O$22)","v":"May 15 - June 30 and August 6 - September 15: 1 x Weekly on Thursdays;\nJune 1 - July 1: Twice Weekly on Mondays and Thursdays\n(if needed when we set schedule)"}]
[20,{"$f":"IF('Year 1'!$B$23=\"\",\"\",'Year 1'!$B$23)","v":"Deep Creek SRA;\n1st Outhouse;\nBear Resistant Container."},{"$f":"IF('Year 1'!$C$23=\"\",\"\",'Year 1'!$C$23)","v":"6 YD"},1,null,{"$f":"IF('Year 1'!$F$23=\"\",\"\",'Year 1'!$F$23)","v":20},"",null,{"$f":"IF('Year 1'!$I$23=\"\",\"\",'Year 1'!$I$23)","v":28},"",null,"","2030-05-01","2030-09-15",{"$f":"IF('Year 1'!$O$23=\"\",\"\",'Year 1'!$O$23)","v":"May 1- May 15 and August 6 - September 15: Weekly on Mondays;\nMay 16 - August 5: Twice Weekly on Mondays and Fridays\n(if needed when we schedule)"}]
[21,{"$f":"IF('Year 1'!$B$24=\"\",\"\",'Year 1'!$B$24)","v":"Deep Creek SRA;\n1st Outhouse;\nBear Resistant Container."},{"$f":"IF('Year 1'!$C$24=\"\",\"\",'Year 1'!$C$24)","v":"6 YD"},1,null,{"$f":"IF('Year 1'!$F$24=\"\",\"\",'Year 1'!$F$24)","v":20},"",null,{"$f":"IF('Year 1'!$I$24=\"\",\"\",'Year 1'!$I$24)","v":28},"",null,"","2030-05-01","2030-09-15",{"$f":"IF('Year 1'!$O$24=\"\",\"\",'Year 1'!$O$24)","v":"May 1- May 15 and August 6 - September 15: Weekly on Mondays;\nMay 16 - August 5: Twice Weekly on Mondays and Fridays\n(if needed when we schedule)"}]
[22,{"$f":"IF('Year 1'!$B$25=\"\",\"\",'Year 1'!$B$25)","v":"Deep Creek SRA;\nBoat Ramp Outhouse;\nBear Resistant Container."},{"$f":"IF('Year 1'!$C$25=\"\",\"\",'Year 1'!$C$25)","v":"6 YD"},1,null,{"$f":"IF('Year 1'!$F$25=\"\",\"\",'Year 1'!$F$25)","v":20},"",null,{"$f":"IF('Year 1'!$I$25=\"\",\"\",'Year 1'!$I$25)","v":28},"",null,"","2030-05-15","2030-09-15",{"$f":"IF('Year 1'!$O$25=\"\",\"\",'Year 1'!$O$25)","v":"May 15 - May 15 and August 6 - September 15: Weekly on Mondays;\nMay 16 - August 5: Twice Weekly on Mondays and Fridays\n(if needed when we schedule)"}]
[24,{"$f":"IF('Year 1'!$B$26=\"\",\"\",'Year 1'!$B$26)","v":"Deep Creek South (south pullout near Deep Creek highway bridge);\nPlace dumpster on pavement  opposite of latine in the corner;\nBear Resistant Container."},{"$f":"IF('Year 1'!$C$26=\"\",\"\",'Year 1'!$C$26)","v":"6 YD"},1,null,{"$f":"IF('Year 1'!$F$26=\"\",\"\",'Year 1'!$F$26)","v":20},"",null,{"$f":"IF('Year 1'!$I$26=\"\",\"\",'Year 1'!$I$26)","v":28},"",null,"","2030-05-01","2030-09-15",{"$f":"IF('Year 1'!$O$26=\"\",\"\",'Year 1'!$O$26)","v":"May 1 - May 15 and August 6 - September 15: Weekly on Mondays;\nMay 16 - August 5: Twice Weekly on Mondays and Fridays\n(if needed when we schedule)"}]
[25,{"$f":"IF('Year 1'!$B$27=\"\",\"\",'Year 1'!$B$27)","v":"Deep Creek North (North pullout near Deep Creek Highway Bridge);\nAt Dumpster Pad;\nBear Resistant Container."},{"$f":"IF('Year 1'!$C$27=\"\",\"\",'Year 1'!$C$27)","v":"6 YD"},1,null,{"$f":"IF('Year 1'!$F$27=\"\",\"\",'Year 1'!$F$27)","v":20},"",null,{"$f":"IF('Year 1'!$I$27=\"\",\"\",'Year 1'!$I$27)","v":28},"",null,"","2030-05-01","2030-09-15",{"$f":"IF('Year 1'!$O$27=\"\",\"\",'Year 1'!$O$27)","v":"May 1 - May 15 and August 6 - September 15: Weekly on Mondays;\nMay 16 - August 5: Twice Weekly on Mondays and Fridays\n(if needed when we schedule)"}]
[26,{"$f":"IF('Year 1'!$B$28=\"\",\"\",'Year 1'!$B$28)","v":"Lowell Point - Seward;\nUpper Parking Lot;\nBear Resistant Container."},{"$f":"IF('Year 1'!$C$28=\"\",\"\",'Year 1'!$C$28)","v":"4 YD"},1,null,{"$f":"IF('Year 1'!$F$28=\"\",\"\",'Year 1'!$F$28)","v":52},"",null,{"$f":"IF('Year 1'!$I$28=\"\",\"\",'Year 1'!$I$28)","v":44},"",null,"","Year Round","Year Round",{"$f":"IF('Year 1'!$O$28=\"\",\"\",'Year 1'!$O$28)","v":"November 1 - February 28:  Monthly;\nMarch 1 - June 30 and August 6 - October 31: 1 x Weekly on Thursdays;\nJuly 1 - August 5: Twice Weekly Mondays and Thursdays\n(If needed when we set schedule)    "}]
["TOTAL YEARLY COST",null,null,null,null,null,null,null,null,null,null,{"$f":"IF(AND(L4=\"\",L5=\"\",L7=\"\",L8=\"\",L9=\"\",L10=\"\",L14=\"\",L15=\"\",L16=\"\",L17=\"\",L18=\"\",L19=\"\",L20=\"\",L21=\"\",L22=\"\",L23=\"\",L26=\"\",L27=\"\",L28=\"\"),\"\",SUM(L4:L28))","v":""}]
["Prices do not reflect the Disposal Surcharge and RCA Fee.  Each Fee to be billed as separate line items on invoice. Bidder is to provide a current Surcharges and RCA Fee schedule in a document attached separately to this Bid Schedule"]
["DETAILS FOR BID SCHEDULE"]
["A.",{"$f":"IF('Year 1'!$B$32=\"\",\"\",'Year 1'!$B$32)","v":"Award will be made By Line Item based on the Total Cost Per Year shown in Column L.  There are 26 Line Items and bidders must bid on.  This is the cost that will be evaluated by the State for award of the contract for each line item."}]
["B.",{"$f":"IF('Year 1'!$B$33=\"\",\"\",'Year 1'!$B$33)","v":"Unless otherwise specified, all containers are to be bear-resistant / bear-proof containers."}]
["C.",{"$f":"IF('Year 1'!$B$34=\"\",\"\",'Year 1'!$B$34)","v":"The Number of Months / Weeks shown in Column F is an estimated number based upon the Approximate Date In and Approximate Date Out shown in Columns M and N. This number is an estimate and will be used only for award and evaluation purposes. The actual number of months/weeks may vary from year to year based upon the needs of the State."}]
["D.",{"$f":"IF('Year 1'!$B$35=\"\",\"\",'Year 1'!$B$35)","v":"The Estimated No. of Pick-Ups shown in Column I is an estimated number based upon the services required in the Scheduled Pick Up Frequency (Column O). This number is an estimate only and will be used only for award and evaluation purposes. The actual number of pick ups may vary from year to year based upon the needs of the State."}]
["E.",{"$f":"IF('Year 1'!$B$36=\"\",\"\",'Year 1'!$B$36)","v":"The Cost for Delivery and Pick Up at Beginning and End of Season shown in Column K is the cost for placement AND removal of the container on the Approximate Date In and Approximate Date Out dates. The cost offered is to be one fee that covers both placement and removal. For example, if the cost offered is $50, this cost covers both placement and removal; not $50 for placement and $50 for removal."}]
["F.",{"$f":"IF('Year 1'!$B$37=\"\",\"\",'Year 1'!$B$37)","v":"The Approximate Date In and Approximate Date Out shown in Columns M and N are the dates the State will require services during the contract year. These dates may vary from year to year depending on the needs of the State."}]
["BIDDER INFORMATION"]
["Company Name:",null,{"$f":"IF('Year 1'!$C$39=\"\",\"\",'Year 1'!$C$39)","v":""},null,null,null,"Alaska Business License Number\n(if applicable):",null,{"$f":"IF('Year 1'!$I$39=\"\",\"\",'Year 1'!$I$39)","v":""},null,"Vendor Number\n(if known):",{"$f":"IF('Year 1'!$L$39=\"\",\"\",'Year 1'!$L$39)","v":""},"Email Address:",null,{"$f":"IF('Year 1'!$O$39=\"\",\"\",'Year 1'!$O$39)","v":""}]
["Authorized Person's Printed Name:",null,{"$f":"IF('Year 1'!$C$40=\"\",\"\",'Year 1'!$C$40)","v":""},null,null,null,"Authorized Person's Signature:\nWill Fill Automatically from Authorized Person's Name",null,null,{"$f":"IF(C40=\"\",\"\",C40)","v":""},null,null,"Date signed:"]
["Check the Preferences your company qualifies for:",null,null,null,"Alaska Bidder:",{"$f":"IF('Year 1'!$F$41=\"\",\"\",'Year 1'!$F$41)","v":""},"Alaska Veteran's:",{"$f":"IF('Year 1'!$H$41=\"\",\"\",'Year 1'!$H$41)","v":""},"Alaska Military Skills Program:",null,{"$f":"IF('Year 1'!$K$41=\"\",\"\",'Year 1'!$K$41)","v":""},"Alaskans with Disabilities:",{"$f":"IF('Year 1'!$M$41=\"\",\"\",'Year 1'!$M$41)","v":""},"Employment Program:",{"$f":"IF('Year 1'!$O$41=\"\",\"\",'Year 1'!$O$41)","v":""}]
["Amendment Certification:  I acknowledge receipt of the following amendment(s) issued for this ITB:",null,null,null,null,null,null,{"$f":"IF('Year 1'!$H$42=\"\",\"\",'Year 1'!$H$42)","v":""}]

{"sheet":"Year 6","index":5,"n_rows":42,"n_cols":15,"rows_kept":42,"cut":false,"hidden":false,"merged":[[41,0,41,6],[41,8,41,14],[42,0,42,14],[43,0,43,14],[38,0,38,1],[38,2,38,5],[38,6,38,7],[38,8,38,9],[38,12,38,13],[39,0,39,1],[39,2,39,5],[39,6,39,8],[39,9,39,11],[39,12,39,13],[40,0,40,2],[40,8,40,9],[37,0,37,14],[0,0,0,14],[28,0,28,10],[28,12,28,14],[29,0,29,14],[30,0,30,14],[31,1,31,14],[32,1,32,14],[33,1,33,14],[34,1,34,14],[35,1,35,14],[36,1,36,14]]}
["BID SCHEDULE FOR ITB 2026-1000-0230"]
["A.","B.","C.","D.","E.","F.","G.","H.","I.","J.","K.","L.","M.","N.","O."]
["Line Item","Site","Container Size","Qty","Rental                                         Cost per Container                                 ","Number of Weeks","Total Cost, Rental (Sum of Column E x Column F)","Price Per Pick-Up                           per Container","Estimated No. of Pick-Ups","Total Cost, Pick-Ups (Sum of Column H x Column I)","Cost for Delivery and Pick-Up at Beginning and End of Season","Total Cost per Year (Sum of Column G + Column J + Column K)","Approximate Date In    ","Approximate Date Out   ","Scheduled Pick Up Frequency"]
[1,{"$f":"IF('Year 1'!$B$4=\"\",\"\",'Year 1'!$B$4)","v":"Morgan's Landing SRA;\nBy Office;\nBear Resistant Container."},{"$f":"IF('Year 1'!$C$4=\"\",\"\",'Year 1'!$C$4)","v":"4 YD"},1,null,{"$f":"IF('Year 1'!$F$4=\"\",\"\",'Year 1'!$F$4)","v":"52"},{"$f":"IF(E4>1,(E4*F4),\"\")","v":""},null,{"$f":"IF('Year 1'!$I$4=\"\",\"\",'Year 1'!$I$4)","v":44},{"$f":"IF(H4>1,(H4*I4),\"\")","v":""},null,{"$f":"IF(AND(G4>1,J4>1,K4>1),SUM(G4,J4,K4),\"\")","v":""},"Year Round","Year Round",{"$f":"IF('Year 1'!$O$4=\"\",\"\",'Year 1'!$O$4)","v":"November 1 - February 28:  Monthly;\nMarch 1 - June 30 and August 6 - October 31: 1 x Weekly on Thursdays;\nJuly 1 - August 5: Twice Weekly Mondays and Thursdays      "}]
[2,{"$f":"IF('Year 1'!$B$5=\"\",\"\",'Year 1'!$B$5)","v":"Morgan's Landing SRA;\nCampground Overflow Lot Entrance;\nBear Resistant Container."},{"$f":"IF('Year 1'!$C$5=\"\",\"\",'Year 1'!$C$5)","v":"6 YD"},1,null,{"$f":"IF('Year 1'!$F$5=\"\",\"\",'Year 1'!$F$5)","v":16},"",null,{"$f":"IF('Year 1'!$I$5=\"\",\"\",'Year 1'!$I$5)","v":24},"",null,"","2031-05-15","2031-09-15",{"$f":"IF('Year 1'!$O$5=\"\",\"\",'Year 1'!$O$5)","v":"May 15 - June 30 and August 6 - September 15: 1 x Weekly;\nJuly 1 - August 5: Twice Weekly Mondays and Thursdays\n(if needed when we set schedule) "}]
[3,{"$f":"IF('Year 1'!$B$6=\"\",\"\",'Year 1'!$B$6)","v":"Cooper Landing;\nBear Resistant Container."},{"$f":"IF('Year 1'!$C$6=\"\",\"\",'Year 1'!$C$6)","v":"6 YD"},1,null,{"$f":"IF('Year 1'!$F$6=\"\",\"\",'Year 1'!$F$6)","v":24},"",null,{"$f":"IF('Year 1'!$I$6=\"\",\"\",'Year 1'!$I$6)","v":32},"",null,"","2031-05-01","2031-10-31",{"$f":"IF('Year 1'!$O$6=\"\",\"\",'Year 1'!$O$6)","v":"May 1 - June 30 and August 6 - October 31: 1 x Weekly;\nJuly 1 - August 5: Twice Weekly Mondays and Thursdays\n(if needed when we set schedule) "}]
[4,{"$f":"IF('Year 1'!$B$7=\"\",\"\",'Year 1'!$B$7)","v":"Izaak Walton Boat Launch;\nBear Resistant Container."},{"$f":"IF('Year 1'!$C$7=\"\",\"\",'Year 1'!$C$7)","v":"6 YD"},1,null,{"$f":"IF('Year 1'!$F$7=\"\",\"\",'Year 1'!$F$7)","v":16},"",null,{"$f":"IF('Year 1'!$I$7=\"\",\"\",'Year 1'!$I$7)","v":24},"",null,"","2031-05-15","2031-09-15",{"$f":"IF('Year 1'!$O$7=\"\",\"\",'Year 1'!$O$7)","v":"May 15 - June 30 and August 6 - September 15: 1 x Weekly;\nJuly 1 - August 5: Twice Weekly Mondays and Thursdays\n(if needed when we set schedule) "}]
[5,{"$f":"IF('Year 1'!$B$8=\"\",\"\",'Year 1'!$B$8)","v":"Bings Landing SRA;\nUpper Campground;\nBear Resistant Container."},"6 YD",1,null,{"$f":"IF('Year 1'!$F$8=\"\",\"\",'Year 1'!$F$8)","v":16},"",null,{"$f":"IF('Year 1'!$I$8=\"\",\"\",'Year 1'!$I$8)","v":24},"",null,"","2031-05-15","2031-09-15",{"$f":"IF('Year 1'!$O$8=\"\",\"\",'Year 1'!$O$8)","v":"May 15 - June 30 and August 6 - September 15: 1 x Weekly;\nJuly 1 - August 5: Twice Weekly Mondays and Thursdays\n(if needed when we set schedule) "}]
[6,{"$f":"IF('Year 1'!$B$9=\"\",\"\",'Year 1'!$B$9)","v":"Bings Landing SRA;\nBoat Launch;\nBear Resistant Container."},{"$f":"IF('Year 1'!$C$9=\"\",\"\",'Year 1'!$C$9)","v":"6 YD"},1,null,{"$f":"IF('Year 1'!$F$9=\"\",\"\",'Year 1'!$F$9)","v":25},"",null,{"$f":"IF('Year 1'!$I$9=\"\",\"\",'Year 1'!$I$9)","v":33},"",null,"","2031-05-15","2031-10-31",{"$f":"IF('Year 1'!$O$9=\"\",\"\",'Year 1'!$O$9)","v":"May 15 - June 30 and August 6 - October 31: 1 x Weekly;\nJuly 1 - August 5: Twice Weekly Mondays and Thursdays\n(if needed when we set schedule) "}]
[7,{"$f":"IF('Year 1'!$B$10=\"\",\"\",'Year 1'!$B$10)","v":"Bings Landing SRA;\nBings Backline;\nBear Resistant Container."},{"$f":"IF('Year 1'!$C$10=\"\",\"\",'Year 1'!$C$10)","v":"6 YD"},1,null,{"$f":"IF('Year 1'!$F$10=\"\",\"\",'Year 1'!$F$10)","v":16},"",null,{"$f":"IF('Year 1'!$I$10=\"\",\"\",'Year 1'!$I$10)","v":24},"",null,"","2031-05-15","2031-09-15",{"$f":"IF('Year 1'!$O$10=\"\",\"\",'Year 1'!$O$10)","v":"May 15 - June 30 and August 6 - September 15: 1 x Weekly;\nJuly 1 - August 5: Twice Weekly Mondays and Thursdays\n(if needed when we set schedule) "}]
[8,{"$f":"IF('Year 1'!$B$11=\"\",\"\",'Year 1'!$B$11)","v":"Eagle Rock - under construct;\nBear Resistant Container."},{"$f":"IF('Year 1'!$C$11=\"\",\"\",'Year 1'!$C$11)","v":"6 YD"},1,null,{"$f":"IF('Year 1'!$F$11=\"\",\"\",'Year 1'!$F$11)","v":16},"",null,{"$f":"IF('Year 1'!$I$11=\"\",\"\",'Year 1'!$I$11)","v":24},"",null,"","2031-05-15","2031-09-15",{"$f":"IF('Year 1'!$O$11=\"\",\"\",'Year 1'!$O$11)","v":"May 15 - June 30 and August 6 - September 15: 1 x Weekly;\nJuly 1 - August 5: Twice Weekly Mondays and Thursdays\n(if needed when we set schedule) "}]
[9,{"$f":"IF('Year 1'!$B$12=\"\",\"\",'Year 1'!$B$12)","v":"Pillars-under constuction;\nBear Resistant Container."},{"$f":"IF('Year 1'!$C$12=\"\",\"\",'Year 1'!$C$12)","v":"6 YD"},1,null,{"$f":"IF('Year 1'!$F$12=\"\",\"\",'Year 1'!$F$12)","v":16},"",null,{"$f":"IF('Year 1'!$I$12=\"\",\"\",'Year 1'!$I$12)","v":24},"",null,"","2031-05-15","2031-09-15",{"$f":"IF('Year 1'!$O$12=\"\",\"\",'Year 1'!$O$12)","v":"May 15 - June 30 and August 6 - September 15: 1 x Weekly;\nJuly 1 - August 5: Twice Weekly Mondays and Thursdays\n(if needed when we set schedule) "}]
[10,{"$f":"IF('Year 1'!$B$13=\"\",\"\",'Year 1'!$B$13)","v":"Kasilof OKL -under construction;\nBear Resistant Container."},"6 YD",1,null,{"$f":"IF('Year 1'!$F$13=\"\",\"\",'Year 1'!$F$13)","v":24},"",null,{"$f":"IF('Year 1'!$I$13=\"\",\"\",'Year 1'!$I$13)","v":32},"",null,"","2031-05-01","2031-10-31",{"$f":"IF('Year 1'!$O$13=\"\",\"\",'Year 1'!$O$13)","v":"May 1 - June 30 and August 6 - October 31: 1 x Weekly on Thursdays;\nJune 1 - July 1: Twice Weekly on Mondays and Thursdays\n(if needed when we set schedule)"}]
[11,{"$f":"IF('Year 1'!$B$14=\"\",\"\",'Year 1'!$B$14)","v":"Kasilof River SRS;\nEntrance;\nBear Resistant Container"},{"$f":"IF('Year 1'!$C$14=\"\",\"\",'Year 1'!$C$14)","v":"6 YD"},1,null,{"$f":"IF('Year 1'!$F$14=\"\",\"\",'Year 1'!$F$14)","v":20},"",null,{"$f":"IF('Year 1'!$I$14=\"\",\"\",'Year 1'!$I$14)","v":28},"",null,"","2031-05-01","2031-09-15",{"$f":"IF('Year 1'!$O$14=\"\",\"\",'Year 1'!$O$14)","v":"May 1 - June 30 and August 6 - September 15: 1 x Weekly on Thursdays;\nJune 1 - July 1: Twice Weekly on Mondays and Thursdays\n(if needed when we set schedule)"}]
[12,{"$f":"IF('Year 1'!$B$15=\"\",\"\",'Year 1'!$B$15)","v":"Johnson Lake SRA;\nBoat Ramp - Right Loop;\nBear Resistant Container."},"6 YD",1,null,{"$f":"IF('Year 1'!$F$15=\"\",\"\",'Year 1'!$F$15)","v":20},"",null,{"$f":"IF('Year 1'!$I$15=\"\",\"\",'Year 1'!$I$15)","v":28},"",null,"","2031-05-01","2031-09-15",{"$f":"IF('Year 1'!$O$15=\"\",\"\",'Year 1'!$O$15)","v":"May 1 - June 30 and August 6 - September 15: 1 x Weekly on Thursdays;\nJune 1 - July 1: Twice Weekly on Mondays and Thursdays\n(if needed when we set schedule)"}]
[13,{"$f":"IF('Year 1'!$B$16=\"\",\"\",'Year 1'!$B$16)","v":"Johnson Lake SRA;\n1st Latrine - Left Loop;\nBear Resistant Container."},{"$f":"IF('Year 1'!$C$16=\"\",\"\",'Year 1'!$C$16)","v":"6 YD"},1,null,{"$f":"IF('Year 1'!$F$16=\"\",\"\",'Year 1'!$F$16)","v":20},"",null,{"$f":"IF('Year 1'!$I$16=\"\",\"\",'Year 1'!$I$16)","v":28},"",null,"","2031-05-01","2031-09-15",{"$f":"IF('Year 1'!$O$16=\"\",\"\",'Year 1'!$O$16)","v":"May 1 - June 30 and August 6 - September 15: 1 x Weekly on Thursdays;\nJune 1 - July 1: Twice Weekly on Mondays and Thursdays\n(if needed when we set schedule)"}]
[14,{"$f":"IF('Year 1'!$B$17=\"\",\"\",'Year 1'!$B$17)","v":"Crooked Creek SRS;\nDumpster Pad Near Exit;\nBear Resistant Container."},{"$f":"IF('Year 1'!$C$17=\"\",\"\",'Year 1'!$C$17)","v":"6 YD"},1,null,{"$f":"IF('Year 1'!$F$17=\"\",\"\",'Year 1'!$F$17)","v":20},"",null,{"$f":"IF('Year 1'!$I$17=\"\",\"\",'Year 1'!$I$17)","v":28},"",null,"","2031-05-15","2031-09-15",{"$f":"IF('Year 1'!$O$17=\"\",\"\",'Year 1'!$O$17)","v":"May 15 - June 30 and August 6 - September 15: 1 x Weekly on Thursdays;\nJune 1 - July 1: Twice Weekly on Mondays and Thursdays\n(if needed when we set schedule)"}]
[15,{"$f":"IF('Year 1'!$B$18=\"\",\"\",'Year 1'!$B$18)","v":"Clam Gulch SRA;\nFar End - Lower Lot;\nBear Resistant Container."},{"$f":"IF('Year 1'!$C$18=\"\",\"\",'Year 1'!$C$18)","v":"6 YD"},1,null,{"$f":"IF('Year 1'!$F$18=\"\",\"\",'Year 1'!$F$18)","v":20},"",null,{"$f":"IF('Year 1'!$I$18=\"\",\"\",'Year 1'!$I$18)","v":28},"",null,"","2031-05-15","2031-09-15",{"$f":"IF('Year 1'!$O$18=\"\",\"\",'Year 1'!$O$18)","v":"May 15 - June 30 and August 6 - September 15: 1 x Weekly on Thursdays;\nJune 1 - July 1: Twice Weekly on Mondays and Thursdays\n(if needed when we set schedule)"}]
[16,{"$f":"IF('Year 1'!$B$19=\"\",\"\",'Year 1'!$B$19)","v":"Ninilchik SRA ;\nView Campground (Bluff);\nBear Resistant Container."},{"$f":"IF('Year 1'!$C$19=\"\",\"\",'Year 1'!$C$19)","v":"6 YD"},1,null,{"$f":"IF('Year 1'!$F$19=\"\",\"\",'Year 1'!$F$19)","v":20},"",null,{"$f":"IF('Year 1'!$I$19=\"\",\"\",'Year 1'!$I$19)","v":28},"",null,"","2031-05-15","2031-09-15",{"$f":"IF('Year 1'!$O$19=\"\",\"\",'Year 1'!$O$19)","v":"May 15 - June 30 and August 6 - September 15: 1 x Weekly on Thursdays;\nJune 1 - July 1: Twice Weekly on Mondays and Thursdays\n(if needed when we set schedule)"}]
[17,{"$f":"IF('Year 1'!$B$20=\"\",\"\",'Year 1'!$B$20)","v":"Ninilchik SRA;\n1st Outhouse, River Campground;\nBear Resistant Container."},{"$f":"IF('Year 1'!$C$20=\"\",\"\",'Year 1'!$C$20)","v":"6 YD"},1,null,{"$f":"IF('Year 1'!$F$20=\"\",\"\",'Year 1'!$F$20)","v":20},"",null,{"$f":"IF('Year 1'!$I$20=\"\",\"\",'Year 1'!$I$20)","v":28},"",null,"","2031-05-15","2031-09-15",{"$f":"IF('Year 1'!$O$20=\"\",\"\",'Year 1'!$O$20)","v":"May 15 - June 30 and August 6 - September 15: 1 x Weekly on Thursdays;\nJune 1 - July 1: Twice Weekly on Mondays and Thursdays\n(if needed when we set schedule)"}]
[18,{"$f":"IF('Year 1'!$B$21=\"\",\"\",'Year 1'!$B$21)","v":"Ninilchik SRA;\n2nd Outhouse, River Campground;\nBear Resistant Container."},{"$f":"IF('Year 1'!$C$21=\"\",\"\",'Year 1'!$C$21)","v":"6 YD"},1,null,{"$f":"IF('Year 1'!$F$21=\"\",\"\",'Year 1'!$F$21)","v":20},"",null,{"$f":"IF('Year 1'!$I$21=\"\",\"\",'Year 1'!$I$21)","v":28},"",null,"","2031-05-15","2031-09-15",{"$f":"IF('Year 1'!$O$21=\"\",\"\",'Year 1'!$O$21)","v":"May 15 - June 30 and August 6 - September 15: 1 x Weekly on Thursdays;\nJune 1 - July 1: Twice Weekly on Mondays and Thursdays\n(if needed when we set schedule)"}]
[19,{"$f":"IF('Year 1'!$B$22=\"\",\"\",'Year 1'!$B$22)","v":"Ninilchik River Scenic Overview (Pullout North of Ninilchik River on East Side of Sterling Highway);\nAt Dumpster Pad;\nBear Resistant Container."},{"$f":"IF('Year 1'!$C$22=\"\",\"\",'Year 1'!$C$22)","v":"6 YD"},1,null,{"$f":"IF('Year 1'!$F$22=\"\",\"\",'Year 1'!$F$22)","v":20},"",null,{"$f":"IF('Year 1'!$I$22=\"\",\"\",'Year 1'!$I$22)","v":28},"",null,"","2031-05-15","2031-09-15",{"$f":"IF('Year 1'!$O$22=\"\",\"\",'Year 1'!$O$22)","v":"May 15 - June 30 and August 6 - September 15: 1 x Weekly on Thursdays;\nJune 1 - July 1: Twice Weekly on Mondays and Thursdays\n(if needed when we set schedule)"}]
[20,{"$f":"IF('Year 1'!$B$23=\"\",\"\",'Year 1'!$B$23)","v":"Deep Creek SRA;\n1st Outhouse;\nBear Resistant Container."},{"$f":"IF('Year 1'!$C$23=\"\",\"\",'Year 1'!$C$23)","v":"6 YD"},1,null,{"$f":"IF('Year 1'!$F$23=\"\",\"\",'Year 1'!$F$23)","v":20},"",null,{"$f":"IF('Year 1'!$I$23=\"\",\"\",'Year 1'!$I$23)","v":28},"",null,"","2031-05-01","2031-09-15",{"$f":"IF('Year 1'!$O$23=\"\",\"\",'Year 1'!$O$23)","v":"May 1- May 15 and August 6 - September 15: Weekly on Mondays;\nMay 16 - August 5: Twice Weekly on Mondays and Fridays\n(if needed when we schedule)"}]
[21,{"$f":"IF('Year 1'!$B$24=\"\",\"\",'Year 1'!$B$24)","v":"Deep Creek SRA;\n1st Outhouse;\nBear Resistant Container."},{"$f":"IF('Year 1'!$C$24=\"\",\"\",'Year 1'!$C$24)","v":"6 YD"},1,null,{"$f":"IF('Year 1'!$F$24=\"\",\"\",'Year 1'!$F$24)","v":20},"",null,{"$f":"IF('Year 1'!$I$24=\"\",\"\",'Year 1'!$I$24)","v":28},"",null,"","2031-05-01","2031-09-15",{"$f":"IF('Year 1'!$O$24=\"\",\"\",'Year 1'!$O$24)","v":"May 1- May 15 and August 6 - September 15: Weekly on Mondays;\nMay 16 - August 5: Twice Weekly on Mondays and Fridays\n(if needed when we schedule)"}]
[22,{"$f":"IF('Year 1'!$B$25=\"\",\"\",'Year 1'!$B$25)","v":"Deep Creek SRA;\nBoat Ramp Outhouse;\nBear Resistant Container."},{"$f":"IF('Year 1'!$C$25=\"\",\"\",'Year 1'!$C$25)","v":"6 YD"},1,null,{"$f":"IF('Year 1'!$F$25=\"\",\"\",'Year 1'!$F$25)","v":20},"",null,{"$f":"IF('Year 1'!$I$25=\"\",\"\",'Year 1'!$I$25)","v":28},"",null,"","2031-05-15","2031-09-15",{"$f":"IF('Year 1'!$O$25=\"\",\"\",'Year 1'!$O$25)","v":"May 15 - May 15 and August 6 - September 15: Weekly on Mondays;\nMay 16 - August 5: Twice Weekly on Mondays and Fridays\n(if needed when we schedule)"}]
[24,{"$f":"IF('Year 1'!$B$26=\"\",\"\",'Year 1'!$B$26)","v":"Deep Creek South (south pullout near Deep Creek highway bridge);\nPlace dumpster on pavement  opposite of latine in the corner;\nBear Resistant Container."},{"$f":"IF('Year 1'!$C$26=\"\",\"\",'Year 1'!$C$26)","v":"6 YD"},1,null,{"$f":"IF('Year 1'!$F$26=\"\",\"\",'Year 1'!$F$26)","v":20},"",null,{"$f":"IF('Year 1'!$I$26=\"\",\"\",'Year 1'!$I$26)","v":28},"",null,"","2031-05-01","2031-09-15",{"$f":"IF('Year 1'!$O$26=\"\",\"\",'Year 1'!$O$26)","v":"May 1 - May 15 and August 6 - September 15: Weekly on Mondays;\nMay 16 - August 5: Twice Weekly on Mondays and Fridays\n(if needed when we schedule)"}]
[25,{"$f":"IF('Year 1'!$B$27=\"\",\"\",'Year 1'!$B$27)","v":"Deep Creek North (North pullout near Deep Creek Highway Bridge);\nAt Dumpster Pad;\nBear Resistant Container."},{"$f":"IF('Year 1'!$C$27=\"\",\"\",'Year 1'!$C$27)","v":"6 YD"},1,null,{"$f":"IF('Year 1'!$F$27=\"\",\"\",'Year 1'!$F$27)","v":20},"",null,{"$f":"IF('Year 1'!$I$27=\"\",\"\",'Year 1'!$I$27)","v":28},"",null,"","2031-05-01","2031-09-15",{"$f":"IF('Year 1'!$O$27=\"\",\"\",'Year 1'!$O$27)","v":"May 1 - May 15 and August 6 - September 15: Weekly on Mondays;\nMay 16 - August 5: Twice Weekly on Mondays and Fridays\n(if needed when we schedule)"}]
[26,{"$f":"IF('Year 1'!$B$28=\"\",\"\",'Year 1'!$B$28)","v":"Lowell Point - Seward;\nUpper Parking Lot;\nBear Resistant Container."},{"$f":"IF('Year 1'!$C$28=\"\",\"\",'Year 1'!$C$28)","v":"4 YD"},1,null,{"$f":"IF('Year 1'!$F$28=\"\",\"\",'Year 1'!$F$28)","v":52},"",null,{"$f":"IF('Year 1'!$I$28=\"\",\"\",'Year 1'!$I$28)","v":44},"",null,"","Year Round","Year Round",{"$f":"IF('Year 1'!$O$28=\"\",\"\",'Year 1'!$O$28)","v":"November 1 - February 28:  Monthly;\nMarch 1 - June 30 and August 6 - October 31: 1 x Weekly on Thursdays;\nJuly 1 - August 5: Twice Weekly Mondays and Thursdays\n(If needed when we set schedule)    "}]
["TOTAL YEARLY COST",null,null,null,null,null,null,null,null,null,null,{"$f":"IF(AND(L4=\"\",L5=\"\",L7=\"\",L8=\"\",L9=\"\",L10=\"\",L14=\"\",L15=\"\",L16=\"\",L17=\"\",L18=\"\",L19=\"\",L20=\"\",L21=\"\",L22=\"\",L23=\"\",L26=\"\",L27=\"\",L28=\"\"),\"\",SUM(L4:L28))","v":""}]
["Prices do not reflect the Disposal Surcharge and RCA Fee.  Each Fee to be billed as separate line items on invoice. Bidder is to provide a current Surcharges and RCA Fee schedule in a document attached separately to this Bid Schedule"]
["DETAILS FOR BID SCHEDULE"]
["A.",{"$f":"IF('Year 1'!$B$32=\"\",\"\",'Year 1'!$B$32)","v":"Award will be made By Line Item based on the Total Cost Per Year shown in Column L.  There are 26 Line Items and bidders must bid on.  This is the cost that will be evaluated by the State for award of the contract for each line item."}]
["B.",{"$f":"IF('Year 1'!$B$33=\"\",\"\",'Year 1'!$B$33)","v":"Unless otherwise specified, all containers are to be bear-resistant / bear-proof containers."}]
["C.",{"$f":"IF('Year 1'!$B$34=\"\",\"\",'Year 1'!$B$34)","v":"The Number of Months / Weeks shown in Column F is an estimated number based upon the Approximate Date In and Approximate Date Out shown in Columns M and N. This number is an estimate and will be used only for award and evaluation purposes. The actual number of months/weeks may vary from year to year based upon the needs of the State."}]
["D.",{"$f":"IF('Year 1'!$B$35=\"\",\"\",'Year 1'!$B$35)","v":"The Estimated No. of Pick-Ups shown in Column I is an estimated number based upon the services required in the Scheduled Pick Up Frequency (Column O). This number is an estimate only and will be used only for award and evaluation purposes. The actual number of pick ups may vary from year to year based upon the needs of the State."}]
["E.",{"$f":"IF('Year 1'!$B$36=\"\",\"\",'Year 1'!$B$36)","v":"The Cost for Delivery and Pick Up at Beginning and End of Season shown in Column K is the cost for placement AND removal of the container on the Approximate Date In and Approximate Date Out dates. The cost offered is to be one fee that covers both placement and removal. For example, if the cost offered is $50, this cost covers both placement and removal; not $50 for placement and $50 for removal."}]
["F.",{"$f":"IF('Year 1'!$B$37=\"\",\"\",'Year 1'!$B$37)","v":"The Approximate Date In and Approximate Date Out shown in Columns M and N are the dates the State will require services during the contract year. These dates may vary from year to year depending on the needs of the State."}]
["BIDDER INFORMATION"]
["Company Name:",null,{"$f":"IF('Year 1'!$C$39=\"\",\"\",'Year 1'!$C$39)","v":""},null,null,null,"Alaska Business License Number\n(if applicable):",null,{"$f":"IF('Year 1'!$I$39=\"\",\"\",'Year 1'!$I$39)","v":""},null,"Vendor Number\n(if known):",{"$f":"IF('Year 1'!$L$39=\"\",\"\",'Year 1'!$L$39)","v":""},"Email Address:",null,{"$f":"IF('Year 1'!$O$39=\"\",\"\",'Year 1'!$O$39)","v":""}]
["Authorized Person's Printed Name:",null,{"$f":"IF('Year 1'!$C$40=\"\",\"\",'Year 1'!$C$40)","v":""},null,null,null,"Authorized Person's Signature:\nWill Fill Automatically from Authorized Person's Name",null,null,{"$f":"IF(C40=\"\",\"\",C40)","v":""},null,null,"Date signed:",null,{"$f":"IF('Year 1'!$R$25=\"\",\"\",'Year 1'!$R$25)","v":""}]
["Check the Preferences your company qualifies for:",null,null,null,"Alaska Bidder:",{"$f":"IF('Year 1'!$F$41=\"\",\"\",'Year 1'!$F$41)","v":""},"Alaska Veteran's:",{"$f":"IF('Year 1'!$H$41=\"\",\"\",'Year 1'!$H$41)","v":""},"Alaska Military Skills Program:",null,{"$f":"IF('Year 1'!$K$41=\"\",\"\",'Year 1'!$K$41)","v":""},"Alaskans with Disabilities:",{"$f":"IF('Year 1'!$M$41=\"\",\"\",'Year 1'!$M$41)","v":""},"Employment Program:",{"$f":"IF('Year 1'!$O$41=\"\",\"\",'Year 1'!$O$41)","v":""}]
["Amendment Certification:  I acknowledge receipt of the following amendment(s) issued for this ITB:",null,null,null,null,null,null,{"$f":"IF('Year 1'!$H$42=\"\",\"\",'Year 1'!$H$42)","v":""}]

{"sheet":"Year 7","index":6,"n_rows":42,"n_cols":15,"rows_kept":42,"cut":false,"hidden":false,"merged":[[43,0,43,14],[38,0,38,1],[38,2,38,5],[38,6,38,7],[38,8,38,9],[38,12,38,13],[39,0,39,1],[39,2,39,5],[39,6,39,8],[39,9,39,11],[39,12,39,13],[40,0,40,2],[40,8,40,9],[41,0,41,6],[41,8,41,14],[42,0,42,14],[37,0,37,14],[0,0,0,14],[28,0,28,10],[28,12,28,14],[29,0,29,14],[30,0,30,14],[31,1,31,14],[32,1,32,14],[33,1,33,14],[34,1,34,14],[35,1,35,14],[36,1,36,14]]}
["BID SCHEDULE FOR ITB 2026-1000-0230"]
["A.","B.","C.","D.","E.","F.","G.","H.","I.","J.","K.","L.","M.","N.","O."]
["Line Item","Site","Container Size","Qty","Rental                                         Cost per Container                                 ","Number of Weeks","Total Cost, Rental (Sum of Column E x Column F)","Price Per Pick-Up                           per Container","Estimated No. of Pick-Ups","Total Cost, Pick-Ups (Sum of Column H x Column I)","Cost for Delivery and Pick-Up at Beginning and End of Season","Total Cost per Year (Sum of Column G + Column J + Column K)","Approximate Date In    ","Approximate Date Out   ","Scheduled Pick Up Frequency"]
[1,{"$f":"IF('Year 1'!$B$4=\"\",\"\",'Year 1'!$B$4)","v":"Morgan's Landing SRA;\nBy Office;\nBear Resistant Container."},{"$f":"IF('Year 1'!$C$4=\"\",\"\",'Year 1'!$C$4)","v":"4 YD"},1,null,{"$f":"IF('Year 1'!$F$4=\"\",\"\",'Year 1'!$F$4)","v":"52"},{"$f":"IF(E4>1,(E4*F4),\"\")","v":""},null,{"$f":"IF('Year 1'!$I$4=\"\",\"\",'Year 1'!$I$4)","v":44},{"$f":"IF(H4>1,(H4*I4),\"\")","v":""},null,{"$f":"IF(AND(G4>1,J4>1,K4>1),SUM(G4,J4,K4),\"\")","v":""},"Year Round","Year Round",{"$f":"IF('Year 1'!$O$4=\"\",\"\",'Year 1'!$O$4)","v":"November 1 - February 28:  Monthly;\nMarch 1 - June 30 and August 6 - October 31: 1 x Weekly on Thursdays;\nJuly 1 - August 5: Twice Weekly Mondays and Thursdays      "}]
[2,{"$f":"IF('Year 1'!$B$5=\"\",\"\",'Year 1'!$B$5)","v":"Morgan's Landing SRA;\nCampground Overflow Lot Entrance;\nBear Resistant Container."},{"$f":"IF('Year 1'!$C$5=\"\",\"\",'Year 1'!$C$5)","v":"6 YD"},1,null,{"$f":"IF('Year 1'!$F$5=\"\",\"\",'Year 1'!$F$5)","v":16},"",null,{"$f":"IF('Year 1'!$I$5=\"\",\"\",'Year 1'!$I$5)","v":24},"",null,"","2032-05-15","2032-09-15",{"$f":"IF('Year 1'!$O$5=\"\",\"\",'Year 1'!$O$5)","v":"May 15 - June 30 and August 6 - September 15: 1 x Weekly;\nJuly 1 - August 5: Twice Weekly Mondays and Thursdays\n(if needed when we set schedule) "}]
[3,{"$f":"IF('Year 1'!$B$6=\"\",\"\",'Year 1'!$B$6)","v":"Cooper Landing;\nBear Resistant Container."},{"$f":"IF('Year 1'!$C$6=\"\",\"\",'Year 1'!$C$6)","v":"6 YD"},1,null,{"$f":"IF('Year 1'!$F$6=\"\",\"\",'Year 1'!$F$6)","v":24},"",null,{"$f":"IF('Year 1'!$I$6=\"\",\"\",'Year 1'!$I$6)","v":32},"",null,"","2032-05-01","2032-10-31",{"$f":"IF('Year 1'!$O$6=\"\",\"\",'Year 1'!$O$6)","v":"May 1 - June 30 and August 6 - October 31: 1 x Weekly;\nJuly 1 - August 5: Twice Weekly Mondays and Thursdays\n(if needed when we set schedule) "}]
[4,{"$f":"IF('Year 1'!$B$7=\"\",\"\",'Year 1'!$B$7)","v":"Izaak Walton Boat Launch;\nBear Resistant Container."},{"$f":"IF('Year 1'!$C$7=\"\",\"\",'Year 1'!$C$7)","v":"6 YD"},1,null,{"$f":"IF('Year 1'!$F$7=\"\",\"\",'Year 1'!$F$7)","v":16},"",null,{"$f":"IF('Year 1'!$I$7=\"\",\"\",'Year 1'!$I$7)","v":24},"",null,"","2032-05-15","2032-09-15",{"$f":"IF('Year 1'!$O$7=\"\",\"\",'Year 1'!$O$7)","v":"May 15 - June 30 and August 6 - September 15: 1 x Weekly;\nJuly 1 - August 5: Twice Weekly Mondays and Thursdays\n(if needed when we set schedule) "}]
[5,{"$f":"IF('Year 1'!$B$8=\"\",\"\",'Year 1'!$B$8)","v":"Bings Landing SRA;\nUpper Campground;\nBear Resistant Container."},"6 YD",1,null,{"$f":"IF('Year 1'!$F$8=\"\",\"\",'Year 1'!$F$8)","v":16},"",null,{"$f":"IF('Year 1'!$I$8=\"\",\"\",'Year 1'!$I$8)","v":24},"",null,"","2032-05-15","2032-09-15",{"$f":"IF('Year 1'!$O$8=\"\",\"\",'Year 1'!$O$8)","v":"May 15 - June 30 and August 6 - September 15: 1 x Weekly;\nJuly 1 - August 5: Twice Weekly Mondays and Thursdays\n(if needed when we set schedule) "}]
[6,{"$f":"IF('Year 1'!$B$9=\"\",\"\",'Year 1'!$B$9)","v":"Bings Landing SRA;\nBoat Launch;\nBear Resistant Container."},{"$f":"IF('Year 1'!$C$9=\"\",\"\",'Year 1'!$C$9)","v":"6 YD"},1,null,{"$f":"IF('Year 1'!$F$9=\"\",\"\",'Year 1'!$F$9)","v":25},"",null,{"$f":"IF('Year 1'!$I$9=\"\",\"\",'Year 1'!$I$9)","v":33},"",null,"","2032-05-15","2032-10-31",{"$f":"IF('Year 1'!$O$9=\"\",\"\",'Year 1'!$O$9)","v":"May 15 - June 30 and August 6 - October 31: 1 x Weekly;\nJuly 1 - August 5: Twice Weekly Mondays and Thursdays\n(if needed when we set schedule) "}]
[7,{"$f":"IF('Year 1'!$B$10=\"\",\"\",'Year 1'!$B$10)","v":"Bings Landing SRA;\nBings Backline;\nBear Resistant Container."},{"$f":"IF('Year 1'!$C$10=\"\",\"\",'Year 1'!$C$10)","v":"6 YD"},1,null,{"$f":"IF('Year 1'!$F$10=\"\",\"\",'Year 1'!$F$10)","v":16},"",null,{"$f":"IF('Year 1'!$I$10=\"\",\"\",'Year 1'!$I$10)","v":24},"",null,"","2032-05-15","2032-09-15",{"$f":"IF('Year 1'!$O$10=\"\",\"\",'Year 1'!$O$10)","v":"May 15 - June 30 and August 6 - September 15: 1 x Weekly;\nJuly 1 - August 5: Twice Weekly Mondays and Thursdays\n(if needed when we set schedule) "}]
[8,{"$f":"IF('Year 1'!$B$11=\"\",\"\",'Year 1'!$B$11)","v":"Eagle Rock - under construct;\nBear Resistant Container."},{"$f":"IF('Year 1'!$C$11=\"\",\"\",'Year 1'!$C$11)","v":"6 YD"},1,null,{"$f":"IF('Year 1'!$F$11=\"\",\"\",'Year 1'!$F$11)","v":16},"",null,{"$f":"IF('Year 1'!$I$11=\"\",\"\",'Year 1'!$I$11)","v":24},"",null,"","2032-05-15","2032-09-15",{"$f":"IF('Year 1'!$O$11=\"\",\"\",'Year 1'!$O$11)","v":"May 15 - June 30 and August 6 - September 15: 1 x Weekly;\nJuly 1 - August 5: Twice Weekly Mondays and Thursdays\n(if needed when we set schedule) "}]
[9,{"$f":"IF('Year 1'!$B$12=\"\",\"\",'Year 1'!$B$12)","v":"Pillars-under constuction;\nBear Resistant Container."},{"$f":"IF('Year 1'!$C$12=\"\",\"\",'Year 1'!$C$12)","v":"6 YD"},1,null,{"$f":"IF('Year 1'!$F$12=\"\",\"\",'Year 1'!$F$12)","v":16},"",null,{"$f":"IF('Year 1'!$I$12=\"\",\"\",'Year 1'!$I$12)","v":24},"",null,"","2032-05-15","2032-09-15",{"$f":"IF('Year 1'!$O$12=\"\",\"\",'Year 1'!$O$12)","v":"May 15 - June 30 and August 6 - September 15: 1 x Weekly;\nJuly 1 - August 5: Twice Weekly Mondays and Thursdays\n(if needed when we set schedule) "}]
[10,{"$f":"IF('Year 1'!$B$13=\"\",\"\",'Year 1'!$B$13)","v":"Kasilof OKL -under construction;\nBear Resistant Container."},"6 YD",1,null,{"$f":"IF('Year 1'!$F$13=\"\",\"\",'Year 1'!$F$13)","v":24},"",null,{"$f":"IF('Year 1'!$I$13=\"\",\"\",'Year 1'!$I$13)","v":32},"",null,"","2032-05-01","2032-10-31",{"$f":"IF('Year 1'!$O$13=\"\",\"\",'Year 1'!$O$13)","v":"May 1 - June 30 and August 6 - October 31: 1 x Weekly on Thursdays;\nJune 1 - July 1: Twice Weekly on Mondays and Thursdays\n(if needed when we set schedule)"}]
[11,{"$f":"IF('Year 1'!$B$14=\"\",\"\",'Year 1'!$B$14)","v":"Kasilof River SRS;\nEntrance;\nBear Resistant Container"},{"$f":"IF('Year 1'!$C$14=\"\",\"\",'Year 1'!$C$14)","v":"6 YD"},1,null,{"$f":"IF('Year 1'!$F$14=\"\",\"\",'Year 1'!$F$14)","v":20},"",null,{"$f":"IF('Year 1'!$I$14=\"\",\"\",'Year 1'!$I$14)","v":28},"",null,"","2032-05-01","2032-09-15",{"$f":"IF('Year 1'!$O$14=\"\",\"\",'Year 1'!$O$14)","v":"May 1 - June 30 and August 6 - September 15: 1 x Weekly on Thursdays;\nJune 1 - July 1: Twice Weekly on Mondays and Thursdays\n(if needed when we set schedule)"}]
[12,{"$f":"IF('Year 1'!$B$15=\"\",\"\",'Year 1'!$B$15)","v":"Johnson Lake SRA;\nBoat Ramp - Right Loop;\nBear Resistant Container."},"6 YD",1,null,{"$f":"IF('Year 1'!$F$15=\"\",\"\",'Year 1'!$F$15)","v":20},"",null,{"$f":"IF('Year 1'!$I$15=\"\",\"\",'Year 1'!$I$15)","v":28},"",null,"","2032-05-01","2032-09-15",{"$f":"IF('Year 1'!$O$15=\"\",\"\",'Year 1'!$O$15)","v":"May 1 - June 30 and August 6 - September 15: 1 x Weekly on Thursdays;\nJune 1 - July 1: Twice Weekly on Mondays and Thursdays\n(if needed when we set schedule)"}]
[13,{"$f":"IF('Year 1'!$B$16=\"\",\"\",'Year 1'!$B$16)","v":"Johnson Lake SRA;\n1st Latrine - Left Loop;\nBear Resistant Container."},{"$f":"IF('Year 1'!$C$16=\"\",\"\",'Year 1'!$C$16)","v":"6 YD"},1,null,{"$f":"IF('Year 1'!$F$16=\"\",\"\",'Year 1'!$F$16)","v":20},"",null,{"$f":"IF('Year 1'!$I$16=\"\",\"\",'Year 1'!$I$16)","v":28},"",null,"","2032-05-01","2032-09-15",{"$f":"IF('Year 1'!$O$16=\"\",\"\",'Year 1'!$O$16)","v":"May 1 - June 30 and August 6 - September 15: 1 x Weekly on Thursdays;\nJune 1 - July 1: Twice Weekly on Mondays and Thursdays\n(if needed when we set schedule)"}]
[14,{"$f":"IF('Year 1'!$B$17=\"\",\"\",'Year 1'!$B$17)","v":"Crooked Creek SRS;\nDumpster Pad Near Exit;\nBear Resistant Container."},{"$f":"IF('Year 1'!$C$17=\"\",\"\",'Year 1'!$C$17)","v":"6 YD"},1,null,{"$f":"IF('Year 1'!$F$17=\"\",\"\",'Year 1'!$F$17)","v":20},"",null,{"$f":"IF('Year 1'!$I$17=\"\",\"\",'Year 1'!$I$17)","v":28},"",null,"","2032-05-15","2032-09-15",{"$f":"IF('Year 1'!$O$17=\"\",\"\",'Year 1'!$O$17)","v":"May 15 - June 30 and August 6 - September 15: 1 x Weekly on Thursdays;\nJune 1 - July 1: Twice Weekly on Mondays and Thursdays\n(if needed when we set schedule)"}]
[15,{"$f":"IF('Year 1'!$B$18=\"\",\"\",'Year 1'!$B$18)","v":"Clam Gulch SRA;\nFar End - Lower Lot;\nBear Resistant Container."},{"$f":"IF('Year 1'!$C$18=\"\",\"\",'Year 1'!$C$18)","v":"6 YD"},1,null,{"$f":"IF('Year 1'!$F$18=\"\",\"\",'Year 1'!$F$18)","v":20},"",null,{"$f":"IF('Year 1'!$I$18=\"\",\"\",'Year 1'!$I$18)","v":28},"",null,"","2032-05-15","2032-09-15",{"$f":"IF('Year 1'!$O$18=\"\",\"\",'Year 1'!$O$18)","v":"May 15 - June 30 and August 6 - September 15: 1 x Weekly on Thursdays;\nJune 1 - July 1: Twice Weekly on Mondays and Thursdays\n(if needed when we set schedule)"}]
[16,{"$f":"IF('Year 1'!$B$19=\"\",\"\",'Year 1'!$B$19)","v":"Ninilchik SRA ;\nView Campground (Bluff);\nBear Resistant Container."},{"$f":"IF('Year 1'!$C$19=\"\",\"\",'Year 1'!$C$19)","v":"6 YD"},1,null,{"$f":"IF('Year 1'!$F$19=\"\",\"\",'Year 1'!$F$19)","v":20},"",null,{"$f":"IF('Year 1'!$I$19=\"\",\"\",'Year 1'!$I$19)","v":28},"",null,"","2032-05-15","2032-09-15",{"$f":"IF('Year 1'!$O$19=\"\",\"\",'Year 1'!$O$19)","v":"May 15 - June 30 and August 6 - September 15: 1 x Weekly on Thursdays;\nJune 1 - July 1: Twice Weekly on Mondays and Thursdays\n(if needed when we set schedule)"}]
[17,{"$f":"IF('Year 1'!$B$20=\"\",\"\",'Year 1'!$B$20)","v":"Ninilchik SRA;\n1st Outhouse, River Campground;\nBear Resistant Container."},{"$f":"IF('Year 1'!$C$20=\"\",\"\",'Year 1'!$C$20)","v":"6 YD"},1,null,{"$f":"IF('Year 1'!$F$20=\"\",\"\",'Year 1'!$F$20)","v":20},"",null,{"$f":"IF('Year 1'!$I$20=\"\",\"\",'Year 1'!$I$20)","v":28},"",null,"","2032-05-15","2032-09-15",{"$f":"IF('Year 1'!$O$20=\"\",\"\",'Year 1'!$O$20)","v":"May 15 - June 30 and August 6 - September 15: 1 x Weekly on Thursdays;\nJune 1 - July 1: Twice Weekly on Mondays and Thursdays\n(if needed when we set schedule)"}]
[18,{"$f":"IF('Year 1'!$B$21=\"\",\"\",'Year 1'!$B$21)","v":"Ninilchik SRA;\n2nd Outhouse, River Campground;\nBear Resistant Container."},{"$f":"IF('Year 1'!$C$21=\"\",\"\",'Year 1'!$C$21)","v":"6 YD"},1,null,{"$f":"IF('Year 1'!$F$21=\"\",\"\",'Year 1'!$F$21)","v":20},"",null,{"$f":"IF('Year 1'!$I$21=\"\",\"\",'Year 1'!$I$21)","v":28},"",null,"","2032-05-15","2032-09-15",{"$f":"IF('Year 1'!$O$21=\"\",\"\",'Year 1'!$O$21)","v":"May 15 - June 30 and August 6 - September 15: 1 x Weekly on Thursdays;\nJune 1 - July 1: Twice Weekly on Mondays and Thursdays\n(if needed when we set schedule)"}]
[19,{"$f":"IF('Year 1'!$B$22=\"\",\"\",'Year 1'!$B$22)","v":"Ninilchik River Scenic Overview (Pullout North of Ninilchik River on East Side of Sterling Highway);\nAt Dumpster Pad;\nBear Resistant Container."},{"$f":"IF('Year 1'!$C$22=\"\",\"\",'Year 1'!$C$22)","v":"6 YD"},1,null,{"$f":"IF('Year 1'!$F$22=\"\",\"\",'Year 1'!$F$22)","v":20},"",null,{"$f":"IF('Year 1'!$I$22=\"\",\"\",'Year 1'!$I$22)","v":28},"",null,"","2032-05-15","2032-09-15",{"$f":"IF('Year 1'!$O$22=\"\",\"\",'Year 1'!$O$22)","v":"May 15 - June 30 and August 6 - September 15: 1 x Weekly on Thursdays;\nJune 1 - July 1: Twice Weekly on Mondays and Thursdays\n(if needed when we set schedule)"}]
[20,{"$f":"IF('Year 1'!$B$23=\"\",\"\",'Year 1'!$B$23)","v":"Deep Creek SRA;\n1st Outhouse;\nBear Resistant Container."},{"$f":"IF('Year 1'!$C$23=\"\",\"\",'Year 1'!$C$23)","v":"6 YD"},1,null,{"$f":"IF('Year 1'!$F$23=\"\",\"\",'Year 1'!$F$23)","v":20},"",null,{"$f":"IF('Year 1'!$I$23=\"\",\"\",'Year 1'!$I$23)","v":28},"",null,"","2032-05-01","2032-09-15",{"$f":"IF('Year 1'!$O$23=\"\",\"\",'Year 1'!$O$23)","v":"May 1- May 15 and August 6 - September 15: Weekly on Mondays;\nMay 16 - August 5: Twice Weekly on Mondays and Fridays\n(if needed when we schedule)"}]
[21,{"$f":"IF('Year 1'!$B$24=\"\",\"\",'Year 1'!$B$24)","v":"Deep Creek SRA;\n1st Outhouse;\nBear Resistant Container."},{"$f":"IF('Year 1'!$C$24=\"\",\"\",'Year 1'!$C$24)","v":"6 YD"},1,null,{"$f":"IF('Year 1'!$F$24=\"\",\"\",'Year 1'!$F$24)","v":20},"",null,{"$f":"IF('Year 1'!$I$24=\"\",\"\",'Year 1'!$I$24)","v":28},"",null,"","2032-05-01","2032-09-15",{"$f":"IF('Year 1'!$O$24=\"\",\"\",'Year 1'!$O$24)","v":"May 1- May 15 and August 6 - September 15: Weekly on Mondays;\nMay 16 - August 5: Twice Weekly on Mondays and Fridays\n(if needed when we schedule)"}]
[22,{"$f":"IF('Year 1'!$B$25=\"\",\"\",'Year 1'!$B$25)","v":"Deep Creek SRA;\nBoat Ramp Outhouse;\nBear Resistant Container."},{"$f":"IF('Year 1'!$C$25=\"\",\"\",'Year 1'!$C$25)","v":"6 YD"},1,null,{"$f":"IF('Year 1'!$F$25=\"\",\"\",'Year 1'!$F$25)","v":20},"",null,{"$f":"IF('Year 1'!$I$25=\"\",\"\",'Year 1'!$I$25)","v":28},"",null,"","2026-05-15","2032-09-15",{"$f":"IF('Year 1'!$O$25=\"\",\"\",'Year 1'!$O$25)","v":"May 15 - May 15 and August 6 - September 15: Weekly on Mondays;\nMay 16 - August 5: Twice Weekly on Mondays and Fridays\n(if needed when we schedule)"}]
[24,{"$f":"IF('Year 1'!$B$26=\"\",\"\",'Year 1'!$B$26)","v":"Deep Creek South (south pullout near Deep Creek highway bridge);\nPlace dumpster on pavement  opposite of latine in the corner;\nBear Resistant Container."},{"$f":"IF('Year 1'!$C$26=\"\",\"\",'Year 1'!$C$26)","v":"6 YD"},1,null,{"$f":"IF('Year 1'!$F$26=\"\",\"\",'Year 1'!$F$26)","v":20},"",null,{"$f":"IF('Year 1'!$I$26=\"\",\"\",'Year 1'!$I$26)","v":28},"",null,"","2032-05-01","2032-09-15",{"$f":"IF('Year 1'!$O$26=\"\",\"\",'Year 1'!$O$26)","v":"May 1 - May 15 and August 6 - September 15: Weekly on Mondays;\nMay 16 - August 5: Twice Weekly on Mondays and Fridays\n(if needed when we schedule)"}]
[25,{"$f":"IF('Year 1'!$B$27=\"\",\"\",'Year 1'!$B$27)","v":"Deep Creek North (North pullout near Deep Creek Highway Bridge);\nAt Dumpster Pad;\nBear Resistant Container."},{"$f":"IF('Year 1'!$C$27=\"\",\"\",'Year 1'!$C$27)","v":"6 YD"},1,null,{"$f":"IF('Year 1'!$F$27=\"\",\"\",'Year 1'!$F$27)","v":20},"",null,{"$f":"IF('Year 1'!$I$27=\"\",\"\",'Year 1'!$I$27)","v":28},"",null,"","2032-05-01","2032-09-15",{"$f":"IF('Year 1'!$O$27=\"\",\"\",'Year 1'!$O$27)","v":"May 1 - May 15 and August 6 - September 15: Weekly on Mondays;\nMay 16 - August 5: Twice Weekly on Mondays and Fridays\n(if needed when we schedule)"}]
[26,{"$f":"IF('Year 1'!$B$28=\"\",\"\",'Year 1'!$B$28)","v":"Lowell Point - Seward;\nUpper Parking Lot;\nBear Resistant Container."},{"$f":"IF('Year 1'!$C$28=\"\",\"\",'Year 1'!$C$28)","v":"4 YD"},1,null,{"$f":"IF('Year 1'!$F$28=\"\",\"\",'Year 1'!$F$28)","v":52},"",null,{"$f":"IF('Year 1'!$I$28=\"\",\"\",'Year 1'!$I$28)","v":44},"",null,"","Year Round","Year Round",{"$f":"IF('Year 1'!$O$28=\"\",\"\",'Year 1'!$O$28)","v":"November 1 - February 28:  Monthly;\nMarch 1 - June 30 and August 6 - October 31: 1 x Weekly on Thursdays;\nJuly 1 - August 5: Twice Weekly Mondays and Thursdays\n(If needed when we set schedule)    "}]
["TOTAL YEARLY COST",null,null,null,null,null,null,null,null,null,null,{"$f":"IF(AND(L4=\"\",L5=\"\",L7=\"\",L8=\"\",L9=\"\",L10=\"\",L14=\"\",L15=\"\",L16=\"\",L17=\"\",L18=\"\",L19=\"\",L20=\"\",L21=\"\",L22=\"\",L23=\"\",L26=\"\",L27=\"\",L28=\"\"),\"\",SUM(L4:L28))","v":""}]
["Prices do not reflect the Disposal Surcharge and RCA Fee.  Each Fee to be billed as separate line items on invoice. Bidder is to provide a current Surcharges and RCA Fee schedule in a document attached separately to this Bid Schedule"]
["DETAILS FOR BID SCHEDULE"]
["A.",{"$f":"IF('Year 1'!$B$32=\"\",\"\",'Year 1'!$B$32)","v":"Award will be made By Line Item based on the Total Cost Per Year shown in Column L.  There are 26 Line Items and bidders must bid on.  This is the cost that will be evaluated by the State for award of the contract for each line item."}]
["B.",{"$f":"IF('Year 1'!$B$33=\"\",\"\",'Year 1'!$B$33)","v":"Unless otherwise specified, all containers are to be bear-resistant / bear-proof containers."}]
["C.",{"$f":"IF('Year 1'!$B$34=\"\",\"\",'Year 1'!$B$34)","v":"The Number of Months / Weeks shown in Column F is an estimated number based upon the Approximate Date In and Approximate Date Out shown in Columns M and N. This number is an estimate and will be used only for award and evaluation purposes. The actual number of months/weeks may vary from year to year based upon the needs of the State."}]
["D.",{"$f":"IF('Year 1'!$B$35=\"\",\"\",'Year 1'!$B$35)","v":"The Estimated No. of Pick-Ups shown in Column I is an estimated number based upon the services required in the Scheduled Pick Up Frequency (Column O). This number is an estimate only and will be used only for award and evaluation purposes. The actual number of pick ups may vary from year to year based upon the needs of the State."}]
["E.",{"$f":"IF('Year 1'!$B$36=\"\",\"\",'Year 1'!$B$36)","v":"The Cost for Delivery and Pick Up at Beginning and End of Season shown in Column K is the cost for placement AND removal of the container on the Approximate Date In and Approximate Date Out dates. The cost offered is to be one fee that covers both placement and removal. For example, if the cost offered is $50, this cost covers both placement and removal; not $50 for placement and $50 for removal."}]
["F.",{"$f":"IF('Year 1'!$B$37=\"\",\"\",'Year 1'!$B$37)","v":"The Approximate Date In and Approximate Date Out shown in Columns M and N are the dates the State will require services during the contract year. These dates may vary from year to year depending on the needs of the State."}]
["BIDDER INFORMATION"]
["Company Name:",null,{"$f":"IF('Year 1'!$C$39=\"\",\"\",'Year 1'!$C$39)","v":""},null,null,null,"Alaska Business License Number\n(if applicable):",null,{"$f":"IF('Year 1'!$I$39=\"\",\"\",'Year 1'!$I$39)","v":""},null,"Vendor Number\n(if known):",{"$f":"IF('Year 1'!$L$39=\"\",\"\",'Year 1'!$L$39)","v":""},"Email Address:",null,{"$f":"IF('Year 1'!$O$39=\"\",\"\",'Year 1'!$O$39)","v":""}]
["Authorized Person's Printed Name:",null,{"$f":"IF('Year 1'!$C$40=\"\",\"\",'Year 1'!$C$40)","v":""},null,null,null,"Authorized Person's Signature:\nWill Fill Automatically from Authorized Person's Name",null,null,{"$f":"IF(C40=\"\",\"\",C40)","v":""},null,null,"Date signed:"]
["Check the Preferences your company qualifies for:",null,null,null,"Alaska Bidder:",{"$f":"IF('Year 1'!$F$41=\"\",\"\",'Year 1'!$F$41)","v":""},"Alaska Veteran's:",{"$f":"IF('Year 1'!$H$41=\"\",\"\",'Year 1'!$H$41)","v":""},"Alaska Military Skills Program:",null,{"$f":"IF('Year 1'!$K$41=\"\",\"\",'Year 1'!$K$41)","v":""},"Alaskans with Disabilities:",{"$f":"IF('Year 1'!$M$41=\"\",\"\",'Year 1'!$M$41)","v":""},"Employment Program:",{"$f":"IF('Year 1'!$O$41=\"\",\"\",'Year 1'!$O$41)","v":""}]
["Amendment Certification:  I acknowledge receipt of the following amendment(s) issued for this ITB:",null,null,null,null,null,null,{"$f":"IF('Year 1'!$H$42=\"\",\"\",'Year 1'!$H$42)","v":""}]

{"sheet":"7 YEAR TOTAL","index":7,"n_rows":24,"n_cols":15,"rows_kept":24,"cut":false,"hidden":false,"merged":[[24,0,24,14],[25,0,25,14],[20,0,20,1],[20,2,20,5],[20,6,20,7],[20,8,20,9],[20,12,20,13],[21,0,21,1],[21,2,21,5],[21,6,21,8],[21,9,21,11],[21,12,21,13],[22,0,22,2],[22,8,22,9],[15,1,15,14],[16,1,16,14],[17,1,17,14],[18,1,18,14],[23,0,23,6],[23,8,23,14],[19,0,19,14],[14,1,14,14],[0,0,0,14],[11,0,11,14],[12,0,12,14],[13,1,13,14],[1,0,1,14],[2,1,2,14],[3,1,3,13],[4,1,4,13],[10,0,10,13],[5,1,5,13],[6,1,6,13],[7,1,7,13],[8,1,8,13],[9,1,9,13]]}
["BID SCHEDULE FOR ITB 2026-1000-0230"]
["7 YEAR TOTAL"]
["LINE","Total Cost per Years 1, 2, 3, 4, 5, 6, and 7"]
[1,"Year 1 Total:",null,null,null,null,null,null,null,null,null,null,null,null,{"$f":"'Year 1'!L29","v":""}]
[2,"Year 2 Total:",null,null,null,null,null,null,null,null,null,null,null,null,{"$f":"'Year 2'!L29","v":""}]
[3,"Year 3 Total:",null,null,null,null,null,null,null,null,null,null,null,null,{"$f":"'Year 3'!L29","v":""}]
[4,"Year 4 Total:",null,null,null,null,null,null,null,null,null,null,null,null,{"$f":"'Year 4'!L29","v":""}]
[5,"Year 5 Total:",null,null,null,null,null,null,null,null,null,null,null,null,{"$f":"'Year 5'!L29","v":""}]
[6,"Year 6 Total:",null,null,null,null,null,null,null,null,null,null,null,null,{"$f":"'Year 6'!L29","v":""}]
[7,"Year 7 Total:",null,null,null,null,null,null,null,null,null,null,null,null,{"$f":"'Year 7'!L29","v":""}]
["TOTAL COST FOR ALL YEARS  (Sum of Year 1 + Year 2 +  Year 3 +  Year 4 + Year 5 + Year 6 + Year 7)"]
["Prices do not reflect the Disposal Surcharge and RCA Fee.  Each Fee to be billed as separate line items on invoice. Bidder is to provide a current Surcharges and RCA Fee schedule in a document attached separately to this Bid Schedule"]
["DETAILS FOR BID SCHEDULE"]
["A.",{"$f":"IF('Year 1'!$B$32=\"\",\"\",'Year 1'!$B$32)","v":"Award will be made By Line Item based on the Total Cost Per Year shown in Column L.  There are 26 Line Items and bidders must bid on.  This is the cost that will be evaluated by the State for award of the contract for each line item."}]
["B.",{"$f":"IF('Year 1'!$B$33=\"\",\"\",'Year 1'!$B$33)","v":"Unless otherwise specified, all containers are to be bear-resistant / bear-proof containers."}]
["C.",{"$f":"IF('Year 1'!$B$34=\"\",\"\",'Year 1'!$B$34)","v":"The Number of Months / Weeks shown in Column F is an estimated number based upon the Approximate Date In and Approximate Date Out shown in Columns M and N. This number is an estimate and will be used only for award and evaluation purposes. The actual number of months/weeks may vary from year to year based upon the needs of the State."}]
["D.",{"$f":"IF('Year 1'!$B$35=\"\",\"\",'Year 1'!$B$35)","v":"The Estimated No. of Pick-Ups shown in Column I is an estimated number based upon the services required in the Scheduled Pick Up Frequency (Column O). This number is an estimate only and will be used only for award and evaluation purposes. The actual number of pick ups may vary from year to year based upon the needs of the State."}]
["E.",{"$f":"IF('Year 1'!$B$36=\"\",\"\",'Year 1'!$B$36)","v":"The Cost for Delivery and Pick Up at Beginning and End of Season shown in Column K is the cost for placement AND removal of the container on the Approximate Date In and Approximate Date Out dates. The cost offered is to be one fee that covers both placement and removal. For example, if the cost offered is $50, this cost covers both placement and removal; not $50 for placement and $50 for removal."}]
["F.",{"$f":"IF('Year 1'!$B$37=\"\",\"\",'Year 1'!$B$37)","v":"The Approximate Date In and Approximate Date Out shown in Columns M and N are the dates the State will require services during the contract year. These dates may vary from year to year depending on the needs of the State."}]
["BIDDER INFORMATION"]
["Company Name:",null,{"$f":"IF('Year 1'!$C$39=\"\",\"\",'Year 1'!$C$39)","v":""},null,null,null,"Alaska Business License Number\n(if applicable):",null,{"$f":"IF('Year 1'!$I$39=\"\",\"\",'Year 1'!$I$39)","v":""},null,"Vendor Number\n(if known):",{"$f":"IF('Year 1'!$L$39=\"\",\"\",'Year 1'!$L$39)","v":""},"Email Address:",null,{"$f":"IF('Year 1'!$O$39=\"\",\"\",'Year 1'!$O$39)","v":""}]
["Authorized Person's Printed Name:",null,{"$f":"IF('Year 1'!$C$40=\"\",\"\",'Year 1'!$C$40)","v":""},null,null,null,"Authorized Person's Signature:\nWill Fill Automatically from Authorized Person's Name",null,null,{"$f":"IF(C22=\"\",\"\",C22)","v":""},null,null,"Date signed:",null,{"$f":"IF('Year 7'!$O$40=\"\",\"\",'Year 7'!$O$40)","v":""}]
["Check the Preferences your company qualifies for:",null,null,null,"Alaska Bidder:",{"$f":"IF('Year 1'!$F$41=\"\",\"\",'Year 1'!$F$41)","v":""},"Alaska Veteran's:",{"$f":"IF('Year 1'!$H$41=\"\",\"\",'Year 1'!$H$41)","v":""},"Alaska Military Skills Program:",null,{"$f":"IF('Year 1'!$K$41=\"\",\"\",'Year 1'!$K$41)","v":""},"Alaskans with Disabilities:",{"$f":"IF('Year 1'!$M$41=\"\",\"\",'Year 1'!$M$41)","v":""},"Employment Program:",{"$f":"IF('Year 1'!$O$41=\"\",\"\",'Year 1'!$O$41)","v":""}]
["Amendment Certification:  I acknowledge receipt of the following amendment(s) issued for this ITB:",null,null,null,null,null,null,{"$f":"IF('Year 1'!$H$42=\"\",\"\",'Year 1'!$H$42)","v":""}]